Body,Body Name,Date,Transaction Number,Invoice Number,Amount,Supplier Name,Supplier ID ,VAT Registration Number ,Expense Area,Expense Type,Expense Code,Purchase Order
http://statistics.data.gov.uk/id/local-authority/29UP,Tonbridge & Malling Borough Council,5/4/2022,0011044281/3,11044281, 278.79,KCS,00054200,,Estate Management Charge,Land Review,D40PS000020400,
http://statistics.data.gov.uk/id/local-authority/29UP,Tonbridge & Malling Borough Council,5/4/2022,0011044282/1,11044282, 1600.10,GSF SANDYLIGHT LTD,01705300,,Temporary Staff,Admin & Prop Sals&Overheads,D01AADA0511300,
http://statistics.data.gov.uk/id/local-authority/29UP,Tonbridge & Malling Borough Council,5/4/2022,0011044284/1,11044284, 1616.90,KH Recruitment Ltd,01738900,,Temporary Staff,Personnel Sals&Overheads,D01ABDB0311300,
http://statistics.data.gov.uk/id/local-authority/29UP,Tonbridge & Malling Borough Council,5/4/2022,0011044285/1,11044285, 340.00,Eryl Davies Veterinary Surgeon,01657600,,Professional Fees,Licences - Fee Paying,H27SH000044001,
http://statistics.data.gov.uk/id/local-authority/29UP,Tonbridge & Malling Borough Council,5/4/2022,0011044286/1,11044286, 310.00,The Institute of Licensing,01362200,,Professional Fees,Licences - Fee Paying,H27SH000044001,
http://statistics.data.gov.uk/id/local-authority/29UP,Tonbridge & Malling Borough Council,5/4/2022,0012008320/1,12008320, 2000.00,Phoenix Software Ltd,00077400,755349015,Consultancy Fees,Information Technology,D27KD000044011,410032111
http://statistics.data.gov.uk/id/local-authority/29UP,Tonbridge & Malling Borough Council,5/4/2022,0021037914/1,21037914, 20.00,Weddle and Co,00714900,,Maintenance of Grounds,Sports Grounds,B13ET000020402,210056745
http://statistics.data.gov.uk/id/local-authority/29UP,Tonbridge & Malling Borough Council,5/4/2022,0021037915/1,21037915, 165.00,Flash Mobile Welding Services Ltd,01189200,,Maintenance of Grounds,Open Spaces & Amenity Areas,B22LE000020402,210056763
http://statistics.data.gov.uk/id/local-authority/29UP,Tonbridge & Malling Borough Council,5/4/2022,0021037916/1,21037916, 2000.00,Tonbridge Lions Club,01291000,,Events Support,Events Development,B41TJ000044041,
http://statistics.data.gov.uk/id/local-authority/29UP,Tonbridge & Malling Borough Council,5/4/2022,0022026569/1,22026569, 6096.50,DCB (Kent) LTD,01326800,,Other Expenses,Disabled Facilities Grant Mand,P03AC000009908,
http://statistics.data.gov.uk/id/local-authority/29UP,Tonbridge & Malling Borough Council,5/4/2022,0022026570/1,22026570, 5094.31,Higher Elevation LTD,01298700,,Other Expenses,Disabled Facilities Grant Mand,P03AC000009908,
http://statistics.data.gov.uk/id/local-authority/29UP,Tonbridge & Malling Borough Council,5/4/2022,0022026571/1,22026571, 2829.57,Clarion Housing,01078200,,Contribution from Other Bodies,Homelessness,C01AACV1995001,
http://statistics.data.gov.uk/id/local-authority/29UP,Tonbridge & Malling Borough Council,5/4/2022,0022026572/1,22026572, 8703.11,Clarion Housing,01078200,,Rent Deposit / Rent in Advance,Homelessness,C01AAC84844093,
http://statistics.data.gov.uk/id/local-authority/29UP,Tonbridge & Malling Borough Council,5/4/2022,0022026573/1,22026573, 570.00,Counterweight LTD,01506600,,Healthy Living Initiatives,Public Health - Healthy Living,H40SYVH0048145,220003226
http://statistics.data.gov.uk/id/local-authority/29UP,Tonbridge & Malling Borough Council,5/4/2022,0022026574/3,22026574, 4645.60,Countrystyle Group,00835900,781981681,Plastic Recycling,Dry Recycling,H34SR000054019,
http://statistics.data.gov.uk/id/local-authority/29UP,Tonbridge & Malling Borough Council,5/4/2022,0022026575/1,22026575, 14.99,KCS,00054200,,Stationery,Env Hlth & Hsg Sals&Overheads,D01AVDV0643003,220003225
http://statistics.data.gov.uk/id/local-authority/29UP,Tonbridge & Malling Borough Council,5/4/2022,0022026575/2,22026575, 9.95,KCS,00054200,,Stationery,Env Hlth & Hsg Sals&Overheads,D01AVDV0643003,220003225
http://statistics.data.gov.uk/id/local-authority/29UP,Tonbridge & Malling Borough Council,5/4/2022,0022026575/3,22026575, 9.95,KCS,00054200,,Stationery,Env Hlth & Hsg Sals&Overheads,D01AVDV0643003,220003225
http://statistics.data.gov.uk/id/local-authority/29UP,Tonbridge & Malling Borough Council,5/4/2022,0022026575/4,22026575, 9.95,KCS,00054200,,Stationery,Env Hlth & Hsg Sals&Overheads,D01AVDV0643003,220003225
http://statistics.data.gov.uk/id/local-authority/29UP,Tonbridge & Malling Borough Council,5/4/2022,0022026576/3,22026576, 162.50,E.ON - Next,01790900,,Electricity,Homelessness,C01AATNPR21002,
http://statistics.data.gov.uk/id/local-authority/29UP,Tonbridge & Malling Borough Council,5/4/2022,0022026577/3,22026577, 444.40,Countrystyle Group,00835900,781981681,Plastic Recycling,Dry Recycling,H34SR000054019,
http://statistics.data.gov.uk/id/local-authority/29UP,Tonbridge & Malling Borough Council,5/4/2022,0022026578/1,22026578, 3500.00,Ashford Borough Council,00005800,,Support for External Agencies,Housing Strategy,C12FB000047022,220003203
http://statistics.data.gov.uk/id/local-authority/29UP,Tonbridge & Malling Borough Council,5/4/2022,0022026579/1,22026579, 192.00,Electronic Temperature Instrument Ltd,00383200,,Other Expenses,Food & Safety - Food Safety,H35SX000048010,220003209
http://statistics.data.gov.uk/id/local-authority/29UP,Tonbridge & Malling Borough Council,5/4/2022,0022026579/2,22026579, 120.00,Electronic Temperature Instrument Ltd,00383200,,Other Expenses,Food & Safety - Food Safety,H35SX000048010,220003209
http://statistics.data.gov.uk/id/local-authority/29UP,Tonbridge & Malling Borough Council,5/4/2022,0022026580/1,22026580, 130.00,Electronic Temperature Instrument Ltd,00383200,,Other Expenses,Food & Safety - Food Safety,H35SX000048010,220003209
http://statistics.data.gov.uk/id/local-authority/29UP,Tonbridge & Malling Borough Council,5/4/2022,0022026581/1,22026581, 14760.00,MGB Plastics Ltd,00709600,,Initial Furniture & Equipment,Green Waste Bin Growth/Replace,P02BC000009906,
http://statistics.data.gov.uk/id/local-authority/29UP,Tonbridge & Malling Borough Council,5/4/2022,0022026582/1,22026582, 123.75,Sevenoaks District Council,00089300,,Healthy Living Initiatives,Public Health - Healthy Living,H40SYVH0048145,220003220
http://statistics.data.gov.uk/id/local-authority/29UP,Tonbridge & Malling Borough Council,5/4/2022,0031018627/1,31018627, 794.70,Patrol,01189800,,Adjudication & Enforcement Ser,Parking Off-Street,E10HA000044230,
http://statistics.data.gov.uk/id/local-authority/29UP,Tonbridge & Malling Borough Council,5/4/2022,0031018631/1,31018631, 170.85,British Telecommunications Plc,00012800,,Maintenance - General,Security Services Management,E09GA000040135,
http://statistics.data.gov.uk/id/local-authority/29UP,Tonbridge & Malling Borough Council,5/4/2022,0031018632/1,31018632, 995.00,Marston,01485000,,Adjudication & Enforcement Ser,Parking Off-Street,E10HA000044230,
http://statistics.data.gov.uk/id/local-authority/29UP,Tonbridge & Malling Borough Council,5/4/2022,0031018636/1,31018636, 2970.72,Chroma Vision Ltd,00891600,,Initial Furniture & Equipment,Cap Ren CCTV,P01BA000009906,
http://statistics.data.gov.uk/id/local-authority/29UP,Tonbridge & Malling Borough Council,5/4/2022,0032009517/3,32009517, 2100.00,G2 Recruitment Solutions,01786000,,Temporary Staff,Planning Sals&Overheads,D01AJDJ0111300,
http://statistics.data.gov.uk/id/local-authority/29UP,Tonbridge & Malling Borough Council,5/4/2022,0032009518/3,32009518, 2579.43,G2 Recruitment Solutions,01786000,,Temporary Staff,Planning Sals&Overheads,D01AJDJ0111300,
http://statistics.data.gov.uk/id/local-authority/29UP,Tonbridge & Malling Borough Council,5/4/2022,0032009519/3,32009519, 1172.50,G2 Recruitment Solutions,01786000,,Temporary Staff,Planning Sals&Overheads,D01AJDJ0111300,
http://statistics.data.gov.uk/id/local-authority/29UP,Tonbridge & Malling Borough Council,5/4/2022,0032009520/3,32009520, 1380.00,Vivid Resourcing,01773700,,Temporary Staff,Planning Sals&Overheads,D01AJDJ0111300,
http://statistics.data.gov.uk/id/local-authority/29UP,Tonbridge & Malling Borough Council,5/4/2022,0032009521/3,32009521, 1666.00,Vivid Resourcing,01773700,,Temporary Staff,Planning Sals&Overheads,D01AJDJ0111300,
http://statistics.data.gov.uk/id/local-authority/29UP,Tonbridge & Malling Borough Council,5/4/2022,0032009522/1,32009522, 3995.00,TSC Designs,01602800,359305975,Professional Fees,Building Control,A01AD000044001,
http://statistics.data.gov.uk/id/local-authority/29UP,Tonbridge & Malling Borough Council,5/4/2022,0032009525/1,32009525, 1350.00,Carrington West Limited,01844500,,Temporary Staff,Planning Sals&Overheads,D01AJDJ0111300,
http://statistics.data.gov.uk/id/local-authority/29UP,Tonbridge & Malling Borough Council,5/4/2022,0032009526/1,32009526, 1608.20,The Oyster Partnership,01196400,,Temporary Staff,Planning Sals&Overheads,D01AJDJ0111300,
http://statistics.data.gov.uk/id/local-authority/29UP,Tonbridge & Malling Borough Council,5/4/2022,0032009527/1,32009527, 1332.60,The Oyster Partnership,01196400,,Temporary Staff,Planning Sals&Overheads,D01AJDJ0111300,
http://statistics.data.gov.uk/id/local-authority/29UP,Tonbridge & Malling Borough Council,5/4/2022,0041034266/1,41034266, 512.30,KH Recruitment Ltd,01738900,,Temporary Staff,Finance Sals&Overheads,D01AFDF1111300,
http://statistics.data.gov.uk/id/local-authority/29UP,Tonbridge & Malling Borough Council,5/4/2022,0041034267/1,41034267, 20.00,Computershare Voucher Services,01212600,,Childcare Scheme,Finance Sals&Overheads,D01AFDF0911136,
http://statistics.data.gov.uk/id/local-authority/29UP,Tonbridge & Malling Borough Council,5/4/2022,0041034267/2,41034267, 1.40,Computershare Voucher Services,01212600,,National Insurance,Finance Sals&Overheads,D01AFDF0911191,
http://statistics.data.gov.uk/id/local-authority/29UP,Tonbridge & Malling Borough Council,5/4/2022,0041034267/3,41034267, 50.00,Computershare Voucher Services,01212600,,Childcare Scheme,Legal Sals&Overheads,D01ARDR0011136,
http://statistics.data.gov.uk/id/local-authority/29UP,Tonbridge & Malling Borough Council,5/4/2022,0041034267/4,41034267, 3.50,Computershare Voucher Services,01212600,,National Insurance,Legal Sals&Overheads,D01ARDR0011191,
http://statistics.data.gov.uk/id/local-authority/29UP,Tonbridge & Malling Borough Council,5/4/2022,0041034267/5,41034267, 20.00,Computershare Voucher Services,01212600,,Childcare Scheme,Env Hlth & Hsg Sals&Overheads,D01AVDV0211136,
http://statistics.data.gov.uk/id/local-authority/29UP,Tonbridge & Malling Borough Council,5/4/2022,0041034267/6,41034267, 1.40,Computershare Voucher Services,01212600,,National Insurance,Env Hlth & Hsg Sals&Overheads,D01AVDV0211191,
http://statistics.data.gov.uk/id/local-authority/29UP,Tonbridge & Malling Borough Council,5/4/2022,0041034267/7,41034267, 243.00,Computershare Voucher Services,01212600,,Childcare Scheme,Env Hlth & Hsg Sals&Overheads,D01AVDV0711136,
http://statistics.data.gov.uk/id/local-authority/29UP,Tonbridge & Malling Borough Council,5/4/2022,0041034267/8,41034267, 17.01,Computershare Voucher Services,01212600,,National Insurance,Env Hlth & Hsg Sals&Overheads,D01AVDV0711191,
http://statistics.data.gov.uk/id/local-authority/29UP,Tonbridge & Malling Borough Council,5/4/2022,0041034268/1,41034268, 1281.70,The Oyster Partnership,01196400,,Temporary Staff,Finance Sals&Overheads,D01AFDF1111300,
http://statistics.data.gov.uk/id/local-authority/29UP,Tonbridge & Malling Borough Council,5/4/2022,0041034269/1,41034269, 1155.00,Morgan Hunt UK Ltd,01086900,,Temporary Staff,Finance Sals&Overheads,D01AFDF1111300,
http://statistics.data.gov.uk/id/local-authority/29UP,Tonbridge & Malling Borough Council,5/4/2022,0041034270/1,41034270, 1113.20,Morgan Hunt UK Ltd,01086900,,Temporary Staff,Finance Sals&Overheads,D01AFDF1111300,
http://statistics.data.gov.uk/id/local-authority/29UP,Tonbridge & Malling Borough Council,5/4/2022,0041034271/1,41034271, 2075.00,NEC Software Solutions UK Ltd,01073900,202159745,Software Enhancement,Local Revenue & NNDR Collect,D41QA000044063,410032175
http://statistics.data.gov.uk/id/local-authority/29UP,Tonbridge & Malling Borough Council,5/4/2022,0041034274/1,41034274, 1583.65,Rundle & Co Ltd,00087200,,Bailiffs Commission,Local Revenue & NNDR Collect,D41QA000044075,
http://statistics.data.gov.uk/id/local-authority/29UP,Tonbridge & Malling Borough Council,5/4/2022,0051008687/1,51008687, 3036.31,Health Assured Ltd,01427900,,Employee Support Scheme,Health Care,D10DB000013314,
http://statistics.data.gov.uk/id/local-authority/29UP,Tonbridge & Malling Borough Council,5/4/2022,0051008689/1,51008689, 999.00,Mallard Consultancy Ltd,01528600,,Ext Fees/Prof & Tech,Training,D10DCDR0013561,510010568
http://statistics.data.gov.uk/id/local-authority/29UP,Tonbridge & Malling Borough Council,5/4/2022,0051008690/1,51008690, 900.00,C I E H.,00181500,,Recruitment Advertising,Recruitment Expenses,D10DADV0713110,510010567
http://statistics.data.gov.uk/id/local-authority/29UP,Tonbridge & Malling Borough Council,5/4/2022,0051008692/1,51008692, 370.00,Firebrand Training Ltd,01716800,,Ext Fees/IT Training,Training,D10DCDN0113564,510010570
http://statistics.data.gov.uk/id/local-authority/29UP,Tonbridge & Malling Borough Council,5/5/2022,0041034277/1,41034277, 468.92,Searches UK,01846800,,Professional Fees,Land Review,D40PS000044001,
http://statistics.data.gov.uk/id/local-authority/29UP,Tonbridge & Malling Borough Council,5/11/2022,0011044289/1,11044289, 811.00,BML Building Services Ltd,01505000,,Other Expenses,Homeless Accommodation,P03AX000009908,110069530
http://statistics.data.gov.uk/id/local-authority/29UP,Tonbridge & Malling Borough Council,5/11/2022,0011044290/1,11044290, 686.00,Colt International Ltd,01231300,,BRREP Servicing-roller shutter,Angel Centre,M15HAP20001928,110069203
http://statistics.data.gov.uk/id/local-authority/29UP,Tonbridge & Malling Borough Council,5/11/2022,0011044291/1,11044291, 494.00,Marine And Industrial Pump Services,00062800,,BRREP Servicing - pool plant,Larkfield Leisure Centre,M15HDP20001910,110069456
http://statistics.data.gov.uk/id/local-authority/29UP,Tonbridge & Malling Borough Council,5/11/2022,0011044292/1,11044292, 252.00,The East Malling Centre,01168000,,Economic Development & Regen,Eco Dev & Reg Gen Bus Support,D52TD000047027,110069541
http://statistics.data.gov.uk/id/local-authority/29UP,Tonbridge & Malling Borough Council,5/11/2022,0011044293/1,11044293, 263.89,VIPSystem Ltd,01422600,,Purchases,Licences - Fee Paying,H27SH000040101,110069467
http://statistics.data.gov.uk/id/local-authority/29UP,Tonbridge & Malling Borough Council,5/11/2022,0011044293/2,11044293, 385.62,VIPSystem Ltd,01422600,,Purchases,Licences - Fee Paying,H27SH000040101,110069467
http://statistics.data.gov.uk/id/local-authority/29UP,Tonbridge & Malling Borough Council,5/11/2022,0011044293/3,11044293, 257.08,VIPSystem Ltd,01422600,,Purchases,Licences - Fee Paying,H27SH000040101,110069467
http://statistics.data.gov.uk/id/local-authority/29UP,Tonbridge & Malling Borough Council,5/11/2022,0011044293/4,11044293, 314.94,VIPSystem Ltd,01422600,,Purchases,Licences - Fee Paying,H27SH000040101,110069467
http://statistics.data.gov.uk/id/local-authority/29UP,Tonbridge & Malling Borough Council,5/11/2022,0011044293/5,11044293, 51.99,VIPSystem Ltd,01422600,,Purchases,Licences - Fee Paying,H27SH000040101,110069467
http://statistics.data.gov.uk/id/local-authority/29UP,Tonbridge & Malling Borough Council,5/11/2022,0011044293/6,11044293, 43.05,VIPSystem Ltd,01422600,,Purchases,Licences - Fee Paying,H27SH000040101,110069467
http://statistics.data.gov.uk/id/local-authority/29UP,Tonbridge & Malling Borough Council,5/11/2022,0011044293/7,11044293, 172.20,VIPSystem Ltd,01422600,,Purchases,Licences - Fee Paying,H27SH000040101,110069467
http://statistics.data.gov.uk/id/local-authority/29UP,Tonbridge & Malling Borough Council,5/11/2022,0011044294/1,11044294, 29.88,KCS,00054200,,Cleaning & Domestic Supplies,Cleaning & Security,D21FD000026001,110069539
http://statistics.data.gov.uk/id/local-authority/29UP,Tonbridge & Malling Borough Council,5/11/2022,0011044294/2,11044294, 359.88,KCS,00054200,,Cleaning & Domestic Supplies,Cleaning & Security,D21FD000026001,110069539
http://statistics.data.gov.uk/id/local-authority/29UP,Tonbridge & Malling Borough Council,5/11/2022,0011044294/3,11044294, 74.97,KCS,00054200,,Cleaning & Domestic Supplies,Cleaning & Security,D21FD000026001,110069539
http://statistics.data.gov.uk/id/local-authority/29UP,Tonbridge & Malling Borough Council,5/11/2022,0011044294/4,11044294, 125.64,KCS,00054200,,Cleaning & Domestic Supplies,Cleaning & Security,D21FD000026001,110069539
http://statistics.data.gov.uk/id/local-authority/29UP,Tonbridge & Malling Borough Council,5/11/2022,0011044295/1,11044295, 733.50,Westcountry Group,00656400,,Purchases,Central Stationery Stock A/c,K03AD000001002,110069531
http://statistics.data.gov.uk/id/local-authority/29UP,Tonbridge & Malling Borough Council,5/11/2022,0011044296/1,11044296, 653.70,HOB Mechanical Services Ltd,01706000,,BRREP Fire Damper Testing,Angel Centre,M15HAP30001970,110069418
http://statistics.data.gov.uk/id/local-authority/29UP,Tonbridge & Malling Borough Council,5/11/2022,0011044296/2,11044296, 653.70,HOB Mechanical Services Ltd,01706000,,BRREP Fire Damper Testing,Larkfield Leisure Centre,M15HDP30001970,110069418
http://statistics.data.gov.uk/id/local-authority/29UP,Tonbridge & Malling Borough Council,5/11/2022,0011044297/1,11044297, 750.00,Westco Communications/Westco Trading Ltd,01844400,,Consultancy Fees,Personnel Sals&Overheads,D01ABDB0044011,110069526
http://statistics.data.gov.uk/id/local-authority/29UP,Tonbridge & Malling Borough Council,5/11/2022,0011044298/1,11044298, 300.00,Mark West - Waste Not Want Not,01755100,,Miscellaneous Services,Cleaning & Security,D21FDDD5044015,
http://statistics.data.gov.uk/id/local-authority/29UP,Tonbridge & Malling Borough Council,5/11/2022,0011044299/1,11044299, 1217.80,Sellick Partnership Group Limited,01336800,,Temporary Staff,Legal Sals&Overheads,D01ARDR0011300,
http://statistics.data.gov.uk/id/local-authority/29UP,Tonbridge & Malling Borough Council,5/11/2022,0011044300/1,11044300, 75.00,Margate Charter Trustees,00563900,,Hospitality,Mayoral & Other Member Support,D29LX000048003,
http://statistics.data.gov.uk/id/local-authority/29UP,Tonbridge & Malling Borough Council,5/11/2022,0011044301/1,11044301, 330.00,G C Industrial Heating Services,00578100,,BRREP Response - General,Gibson Building West,M15KBP50001997,
http://statistics.data.gov.uk/id/local-authority/29UP,Tonbridge & Malling Borough Council,5/11/2022,0011044302/1,11044302, 3428.00,Wallis a Division of Kier Construction L,00806300,683800816,Contract Payments,Homeless Accommodation,P03AX000009904,
http://statistics.data.gov.uk/id/local-authority/29UP,Tonbridge & Malling Borough Council,5/11/2022,0011044304/1,11044304, 715.68,Venn Group Ltd,00914300,,Temporary Staff,Legal Sals&Overheads,D01ARDR0011300,
http://statistics.data.gov.uk/id/local-authority/29UP,Tonbridge & Malling Borough Council,5/11/2022,0011044305/1,11044305, 1400.00,Francis Taylor Building,01688700,,Other Planning Enq - Legal Cos,Legal Sals&Overheads,D01ARDR0044146,
http://statistics.data.gov.uk/id/local-authority/29UP,Tonbridge & Malling Borough Council,5/11/2022,0011044306/1,11044306, 131.81,Tonbridge & Malling Leisure Trust,01469100,,Meeting Expenses,Committee Administration,D29LL000048020,
http://statistics.data.gov.uk/id/local-authority/29UP,Tonbridge & Malling Borough Council,5/11/2022,0011044307/1,11044307, 88.00,BML Building Services Ltd,01505000,,BRREP Response - General,Pleasure Grounds & Open Spaces,M15HHP50001997,
http://statistics.data.gov.uk/id/local-authority/29UP,Tonbridge & Malling Borough Council,5/11/2022,0011044308/1,11044308, 403.03,Chubb Fire & Security Ltd,00115400,174605362,BRREP Servicing-IntruderAlarm,Tonbridge Swimming Pool,M15HBP20001939,
http://statistics.data.gov.uk/id/local-authority/29UP,Tonbridge & Malling Borough Council,5/11/2022,0011044309/1,11044309, 308.20,Biffa Waste Services Ltd,01284500,,Trade Refuse Charges,Cleaning & Security,D21FD000044008,
http://statistics.data.gov.uk/id/local-authority/29UP,Tonbridge & Malling Borough Council,5/11/2022,0011044310/1,11044310, 184.92,Biffa Waste Services Ltd,01284500,,Trade Refuse Charges,Cleaning & Security,D21FD000044008,
http://statistics.data.gov.uk/id/local-authority/29UP,Tonbridge & Malling Borough Council,5/11/2022,0011044311/1,11044311, 42.72,Biffa Waste Services Ltd,01284500,,Trade Refuse Charges,Cleaning & Security,D21FD000044008,
http://statistics.data.gov.uk/id/local-authority/29UP,Tonbridge & Malling Borough Council,5/11/2022,0011044312/1,11044312, 42.72,Biffa Waste Services Ltd,01284500,,Trade Refuse Charges,Cleaning & Security,D21FD000044008,
http://statistics.data.gov.uk/id/local-authority/29UP,Tonbridge & Malling Borough Council,5/11/2022,0011044313/1,11044313, 678.00,Disclosure & Barring Service,00865900,,Professional Fees,Licences - Fee Paying,H27SH000044001,
http://statistics.data.gov.uk/id/local-authority/29UP,Tonbridge & Malling Borough Council,5/11/2022,0011044314/1,11044314, 416.00,Tonbridge & Malling Safer Towns,00103900,,Purchases,Tonbridge Gateway,D23TG000040101,
http://statistics.data.gov.uk/id/local-authority/29UP,Tonbridge & Malling Borough Council,5/11/2022,0011044315/1,11044315, 1705.00,Thomson Snell & Passmore,00101700,,Legal Fees,Legal Sals&Overheads,D01ARDR0044002,
http://statistics.data.gov.uk/id/local-authority/29UP,Tonbridge & Malling Borough Council,5/11/2022,0011044316/1,11044316, 1271.00,Thomson Snell & Passmore,00101700,,Legal Fees,Legal Sals&Overheads,D01ARDR0044002,
http://statistics.data.gov.uk/id/local-authority/29UP,Tonbridge & Malling Borough Council,5/11/2022,0011044317/1,11044317, 21.15,Oasis Group  - Box-It South East,00966800,931579211,Purchases,Electoral Registration,D31MF000040101,
http://statistics.data.gov.uk/id/local-authority/29UP,Tonbridge & Malling Borough Council,5/11/2022,0011044318/1,11044318, 16946.64,Thomson Reuters,01323200,,Reference Books & Publications,Legal Sals&Overheads,D01AR000043010,
http://statistics.data.gov.uk/id/local-authority/29UP,Tonbridge & Malling Borough Council,5/11/2022,0011044320/1,11044320, 368.48,Castle Water,01696500,,Estate Management Charge,Land Review,D40PS000020400,
http://statistics.data.gov.uk/id/local-authority/29UP,Tonbridge & Malling Borough Council,5/11/2022,0011044321/1,11044321, 243.69,Ricoh UK Ltd,01402300,,Maintenance - General,Printing,D22GA000040135,
http://statistics.data.gov.uk/id/local-authority/29UP,Tonbridge & Malling Borough Council,5/11/2022,0011044322/1,11044322, 1497.42,KH Recruitment Ltd,01738900,,Temporary Staff,Personnel Sals&Overheads,D01ABDB0311300,
http://statistics.data.gov.uk/id/local-authority/29UP,Tonbridge & Malling Borough Council,5/11/2022,0012008321/1,12008321, 14.29,Esendex Limited,01008900,,Leased Lines & Modems,Information Technology,D27KD000045011,
http://statistics.data.gov.uk/id/local-authority/29UP,Tonbridge & Malling Borough Council,5/11/2022,0012008322/1,12008322, 69.00,Get It Repaired,01631300,287357752,Mobile Telephones,St Scene & Leis Sals&Overheads,D01AGDG2045013,410032178
http://statistics.data.gov.uk/id/local-authority/29UP,Tonbridge & Malling Borough Council,5/11/2022,0012008323/1,12008323, 3373.20,Phoenix Software Ltd,00077400,755349015,Software Hire & Support,Information Technology,D27KD000044059,410032179
http://statistics.data.gov.uk/id/local-authority/29UP,Tonbridge & Malling Borough Council,5/11/2022,0012008323/10,12008323, 1206.24,Phoenix Software Ltd,00077400,755349015,Software Hire & Support,Information Technology,D27KD000044059,410032179
http://statistics.data.gov.uk/id/local-authority/29UP,Tonbridge & Malling Borough Council,5/11/2022,0012008323/11,12008323, 1124.40,Phoenix Software Ltd,00077400,755349015,Software Hire & Support,Information Technology,D27KD000044059,410032179
http://statistics.data.gov.uk/id/local-authority/29UP,Tonbridge & Malling Borough Council,5/11/2022,0012008323/2,12008323, 54872.64,Phoenix Software Ltd,00077400,755349015,Software Hire & Support,Information Technology,D27KD000044059,410032179
http://statistics.data.gov.uk/id/local-authority/29UP,Tonbridge & Malling Borough Council,5/11/2022,0012008323/3,12008323, 8049.42,Phoenix Software Ltd,00077400,755349015,Software Hire & Support,Information Technology,D27KD000044059,410032179
http://statistics.data.gov.uk/id/local-authority/29UP,Tonbridge & Malling Borough Council,5/11/2022,0012008323/4,12008323, 445.68,Phoenix Software Ltd,00077400,755349015,Software Hire & Support,Information Technology,D27KD000044059,410032179
http://statistics.data.gov.uk/id/local-authority/29UP,Tonbridge & Malling Borough Council,5/11/2022,0012008323/5,12008323, 3463.92,Phoenix Software Ltd,00077400,755349015,Software Hire & Support,Information Technology,D27KD000044059,410032179
http://statistics.data.gov.uk/id/local-authority/29UP,Tonbridge & Malling Borough Council,5/11/2022,0012008323/6,12008323, 1332.00,Phoenix Software Ltd,00077400,755349015,Software Hire & Support,Information Technology,D27KD000044059,410032179
http://statistics.data.gov.uk/id/local-authority/29UP,Tonbridge & Malling Borough Council,5/11/2022,0012008323/7,12008323, 2325.00,Phoenix Software Ltd,00077400,755349015,Software Hire & Support,Information Technology,D27KD000044059,410032179
http://statistics.data.gov.uk/id/local-authority/29UP,Tonbridge & Malling Borough Council,5/11/2022,0012008323/8,12008323, 11886.00,Phoenix Software Ltd,00077400,755349015,Software Hire & Support,Information Technology,D27KD000044059,410032179
http://statistics.data.gov.uk/id/local-authority/29UP,Tonbridge & Malling Borough Council,5/11/2022,0012008323/9,12008323, 1097.82,Phoenix Software Ltd,00077400,755349015,Software Hire & Support,Information Technology,D27KD000044059,410032179
http://statistics.data.gov.uk/id/local-authority/29UP,Tonbridge & Malling Borough Council,5/11/2022,0012008324/1,12008324, 1905.26,NTT Cloud Communications UK Ltd,01794600,,Software Hire & Support,Information Technology,D27KD000044059,
http://statistics.data.gov.uk/id/local-authority/29UP,Tonbridge & Malling Borough Council,5/11/2022,0012008326/1,12008326, 6.51,Daisy Communications,01068100,,Telephones - Rentals,General Admin Telephones,D24GT000045005,
http://statistics.data.gov.uk/id/local-authority/29UP,Tonbridge & Malling Borough Council,5/11/2022,0012008326/2,12008326, 252.90,Daisy Communications,01068100,,Telephones - Call Costs,General Admin Telephones,D24GT000045006,
http://statistics.data.gov.uk/id/local-authority/29UP,Tonbridge & Malling Borough Council,5/11/2022,0012008326/3,12008326, 84.88,Daisy Communications,01068100,,Leased Lines & Modems,Information Technology,D27KD000045011,
http://statistics.data.gov.uk/id/local-authority/29UP,Tonbridge & Malling Borough Council,5/11/2022,0012008326/4,12008326, 65.88,Daisy Communications,01068100,,Maintenance - General,Security Services Management,E09GA000040135,
http://statistics.data.gov.uk/id/local-authority/29UP,Tonbridge & Malling Borough Council,5/11/2022,0012008327/1,12008327, 646.99,KCS,00054200,,Leasing Charges,Multi Function Devices,D22GB000044038,
http://statistics.data.gov.uk/id/local-authority/29UP,Tonbridge & Malling Borough Council,5/11/2022,0012008328/1,12008328, 559.50,KCS,00054200,,Leasing Charges,Multi Function Devices,D22GB000044038,
http://statistics.data.gov.uk/id/local-authority/29UP,Tonbridge & Malling Borough Council,5/11/2022,0012008329/1,12008329, 127.83,KCS,00054200,,Leasing Charges,Multi Function Devices,D22GB000044038,
http://statistics.data.gov.uk/id/local-authority/29UP,Tonbridge & Malling Borough Council,5/11/2022,0012008330/1,12008330, 3633.36,Park Place Technologies Ltd,01809800,336276491,Maintenance - Ancillary Equip,Information Technology,D27KD000040137,410032181
http://statistics.data.gov.uk/id/local-authority/29UP,Tonbridge & Malling Borough Council,5/11/2022,0012008331/3,12008331, 346.00,O2 UK Ltd,01268000,,Mobile Telephones,St Scene & Leis Sals&Overheads,D01AGDG0145013,
http://statistics.data.gov.uk/id/local-authority/29UP,Tonbridge & Malling Borough Council,5/11/2022,0021037917/10,21037917, 4577.19,Landscape Services Ltd,00057600,,Grounds Maintenance Contract,Cemetery,B26MP000050103,
http://statistics.data.gov.uk/id/local-authority/29UP,Tonbridge & Malling Borough Council,5/11/2022,0021037917/11,21037917, 216.11,Landscape Services Ltd,00057600,,Grounds Maintenance Contract,Churchyards St Peter & St Paul,B28MX000050103,
http://statistics.data.gov.uk/id/local-authority/29UP,Tonbridge & Malling Borough Council,5/11/2022,0021037917/12,21037917, 157.16,Landscape Services Ltd,00057600,,Grounds Maintenance Contract,Churchyards St Stephens,B28MY000050103,
http://statistics.data.gov.uk/id/local-authority/29UP,Tonbridge & Malling Borough Council,5/11/2022,0021037917/13,21037917, 173.71,Landscape Services Ltd,00057600,,Grounds Maintenance Contract,Grounds,D21FF000050103,
http://statistics.data.gov.uk/id/local-authority/29UP,Tonbridge & Malling Borough Council,5/11/2022,0021037917/14,21037917, 329.46,Landscape Services Ltd,00057600,,Maintenance of Grounds,Parking Off-Street,E10HA000020402,
http://statistics.data.gov.uk/id/local-authority/29UP,Tonbridge & Malling Borough Council,5/11/2022,0021037917/15,21037917, 1033.20,Landscape Services Ltd,00057600,,Maintenance of Grounds,Parking Off-Street,E10HAE00120402,
http://statistics.data.gov.uk/id/local-authority/29UP,Tonbridge & Malling Borough Council,5/11/2022,0021037917/16,21037917, 98.11,Landscape Services Ltd,00057600,,Maintenance of Grounds,Parking Off-Street,E10HAE00220402,
http://statistics.data.gov.uk/id/local-authority/29UP,Tonbridge & Malling Borough Council,5/11/2022,0021037917/17,21037917, 88.97,Landscape Services Ltd,00057600,,Maintenance of Grounds,Parking Off-Street,E10HAE00320402,
http://statistics.data.gov.uk/id/local-authority/29UP,Tonbridge & Malling Borough Council,5/11/2022,0021037917/18,21037917, 22.19,Landscape Services Ltd,00057600,,Maintenance of Grounds,Parking Off-Street,E10HAE00420402,
http://statistics.data.gov.uk/id/local-authority/29UP,Tonbridge & Malling Borough Council,5/11/2022,0021037917/19,21037917, 0.57,Landscape Services Ltd,00057600,,Maintenance of Grounds,Parking Off-Street,E10HAE00520402,
http://statistics.data.gov.uk/id/local-authority/29UP,Tonbridge & Malling Borough Council,5/11/2022,0021037917/20,21037917, 62.11,Landscape Services Ltd,00057600,,Maintenance of Grounds,Parking Off-Street,E10HAE00620402,
http://statistics.data.gov.uk/id/local-authority/29UP,Tonbridge & Malling Borough Council,5/11/2022,0021037917/21,21037917, 145.01,Landscape Services Ltd,00057600,,Maintenance of Grounds,Parking Off-Street,E10HAE01020402,
http://statistics.data.gov.uk/id/local-authority/29UP,Tonbridge & Malling Borough Council,5/11/2022,0021037917/22,21037917, 3.21,Landscape Services Ltd,00057600,,Maintenance of Grounds,Parking Off-Street,E10HAE01220402,
http://statistics.data.gov.uk/id/local-authority/29UP,Tonbridge & Malling Borough Council,5/11/2022,0021037917/23,21037917, 7.09,Landscape Services Ltd,00057600,,Maintenance of Grounds,Parking Off-Street,E10HAE01320402,
http://statistics.data.gov.uk/id/local-authority/29UP,Tonbridge & Malling Borough Council,5/11/2022,0021037917/24,21037917, 29.50,Landscape Services Ltd,00057600,,Maintenance of Grounds,Parking Off-Street,E10HAE01520402,
http://statistics.data.gov.uk/id/local-authority/29UP,Tonbridge & Malling Borough Council,5/11/2022,0021037917/25,21037917, 57.64,Landscape Services Ltd,00057600,,Maintenance of Grounds,Parking Off-Street,E10HAE01620402,
http://statistics.data.gov.uk/id/local-authority/29UP,Tonbridge & Malling Borough Council,5/11/2022,0021037917/26,21037917, 23.42,Landscape Services Ltd,00057600,,Maintenance of Grounds,Parking Off-Street,E10HAE01720402,
http://statistics.data.gov.uk/id/local-authority/29UP,Tonbridge & Malling Borough Council,5/11/2022,0021037917/27,21037917, 14.39,Landscape Services Ltd,00057600,,Maintenance of Grounds,Parking Off-Street,E10HAE02120402,
http://statistics.data.gov.uk/id/local-authority/29UP,Tonbridge & Malling Borough Council,5/11/2022,0021037917/28,21037917, 22.91,Landscape Services Ltd,00057600,,Maintenance of Grounds,Parking Off-Street,E10HAE02320402,
http://statistics.data.gov.uk/id/local-authority/29UP,Tonbridge & Malling Borough Council,5/11/2022,0021037917/29,21037917, 87.83,Landscape Services Ltd,00057600,,Maintenance of Grounds,Parking Off-Street,E10HAE02820402,
http://statistics.data.gov.uk/id/local-authority/29UP,Tonbridge & Malling Borough Council,5/11/2022,0021037917/3,21037917, 21497.43,Landscape Services Ltd,00057600,,Grounds Maintenance Contract,Sports Grounds,B13ET000050103,
http://statistics.data.gov.uk/id/local-authority/29UP,Tonbridge & Malling Borough Council,5/11/2022,0021037917/30,21037917, 23.78,Landscape Services Ltd,00057600,,Maintenance of Grounds,Parking Off-Street,E10HAE04020402,
http://statistics.data.gov.uk/id/local-authority/29UP,Tonbridge & Malling Borough Council,5/11/2022,0021037917/31,21037917, 78.42,Landscape Services Ltd,00057600,,Maintenance of Grounds,Parking Off-Street,E10HAE04520402,
http://statistics.data.gov.uk/id/local-authority/29UP,Tonbridge & Malling Borough Council,5/11/2022,0021037917/4,21037917, 7461.13,Landscape Services Ltd,00057600,,Grounds Maintenance Contract,Tonbridge Castle Grounds,B22LB000050103,
http://statistics.data.gov.uk/id/local-authority/29UP,Tonbridge & Malling Borough Council,5/11/2022,0021037917/5,21037917, 56.77,Landscape Services Ltd,00057600,,Trade Refuse Charges,Haysden Country Park,B22LC000044008,
http://statistics.data.gov.uk/id/local-authority/29UP,Tonbridge & Malling Borough Council,5/11/2022,0021037917/6,21037917, 487.02,Landscape Services Ltd,00057600,,Litter Collection,Haysden Country Park,B22LC000044061,
http://statistics.data.gov.uk/id/local-authority/29UP,Tonbridge & Malling Borough Council,5/11/2022,0021037917/7,21037917, 1674.08,Landscape Services Ltd,00057600,,Grounds Maintenance Contract,Haysden Country Park,B22LC000050103,
http://statistics.data.gov.uk/id/local-authority/29UP,Tonbridge & Malling Borough Council,5/11/2022,0021037917/8,21037917, 583.97,Landscape Services Ltd,00057600,,Grounds Maintenance Contract,Haysden Country Park,B22LC000050103,
http://statistics.data.gov.uk/id/local-authority/29UP,Tonbridge & Malling Borough Council,5/11/2022,0021037917/9,21037917, 12393.51,Landscape Services Ltd,00057600,,Grounds Maintenance Contract,Open Spaces & Amenity Areas,B22LE000050103,
http://statistics.data.gov.uk/id/local-authority/29UP,Tonbridge & Malling Borough Council,5/11/2022,0021037918/1,21037918, 250.00,Alltree Consultancy Ltd,01668300,,Health & Safety - Trees,Countryside/Woodland Mgt,B22LG000044045,210056750
http://statistics.data.gov.uk/id/local-authority/29UP,Tonbridge & Malling Borough Council,5/11/2022,0021037919/1,21037919, 35.00,Weddle and Co,00714900,,Maintenance of Grounds,Open Spaces & Amenity Areas,B22LE000020402,210056737
http://statistics.data.gov.uk/id/local-authority/29UP,Tonbridge & Malling Borough Council,5/11/2022,0021037921/1,21037921, 550.00,Arnold Tarmac Ltd,01685100,,Maintenance of Grounds,Sports Grounds,B13ET000020402,210056761
http://statistics.data.gov.uk/id/local-authority/29UP,Tonbridge & Malling Borough Council,5/11/2022,0021037922/1,21037922, 550.00,Arnold Tarmac Ltd,01685100,,Maintenance of Grounds,Sports Grounds,B13ET000020402,210056762
http://statistics.data.gov.uk/id/local-authority/29UP,Tonbridge & Malling Borough Council,5/11/2022,0021037923/1,21037923, 685.66,Atlas Facilities Managment Limited ,01075900,,Gates / Security,Patrolling,B22LF000044017,210056716
http://statistics.data.gov.uk/id/local-authority/29UP,Tonbridge & Malling Borough Council,5/11/2022,0021037924/1,21037924, 19.00,C & J Workwear ,01571300,,Purchases,Haysden Country Park,B22LC000040101,210056749
http://statistics.data.gov.uk/id/local-authority/29UP,Tonbridge & Malling Borough Council,5/11/2022,0021037924/2,21037924, 70.00,C & J Workwear ,01571300,,Purchases,Haysden Country Park,B22LC000040101,210056749
http://statistics.data.gov.uk/id/local-authority/29UP,Tonbridge & Malling Borough Council,5/11/2022,0021037925/1,21037925, 816.00,Landscape Services Ltd,00057600,,Initiatives,Climate Change,D47SA000048135,210056752
http://statistics.data.gov.uk/id/local-authority/29UP,Tonbridge & Malling Borough Council,5/11/2022,0021037926/1,21037926, 2.49,KCS,00054200,,Purchases,Cemetery,B26MP000040101,210056766
http://statistics.data.gov.uk/id/local-authority/29UP,Tonbridge & Malling Borough Council,5/11/2022,0021037926/2,21037926, 3.90,KCS,00054200,,Purchases,Cemetery,B26MP000040101,210056766
http://statistics.data.gov.uk/id/local-authority/29UP,Tonbridge & Malling Borough Council,5/11/2022,0021037926/3,21037926, 17.99,KCS,00054200,,Purchases,Cemetery,B26MP000040101,210056766
http://statistics.data.gov.uk/id/local-authority/29UP,Tonbridge & Malling Borough Council,5/11/2022,0021037927/3,21037927, 36.97,B&Q/Screwfix Direct(TradeUKAccount),00141300,,Maintenance of Grounds,Haysden Country Park,B22LC000020402,
http://statistics.data.gov.uk/id/local-authority/29UP,Tonbridge & Malling Borough Council,5/11/2022,0022026583/3,22026583, 55.50,Biffa Waste Services Ltd,01284500,,Trade Refuse Charges,Cleaning & Security,D21FD000044008,
http://statistics.data.gov.uk/id/local-authority/29UP,Tonbridge & Malling Borough Council,5/11/2022,0022026584/3,22026584, 223.40,Countrystyle Group,00835900,781981681,Plastic Recycling,Dry Recycling,H34SR000054019,
http://statistics.data.gov.uk/id/local-authority/29UP,Tonbridge & Malling Borough Council,5/11/2022,0022026585/3,22026585, 1200.00,Green Recycling LTD,01563000,,Paper Recycling,Dry Recycling,H34SR000054024,
http://statistics.data.gov.uk/id/local-authority/29UP,Tonbridge & Malling Borough Council,5/11/2022,0022026586/1,22026586, 2010.00,1st  Steps Housing Kent,01716100,,Temporary Accommodation,Homelessness,C01AA000044051,
http://statistics.data.gov.uk/id/local-authority/29UP,Tonbridge & Malling Borough Council,5/11/2022,0022026587/1,22026587, 180.00,Keith Rawlings,01358700,,Temporary Accommodation,Homelessness,C01AA000044051,
http://statistics.data.gov.uk/id/local-authority/29UP,Tonbridge & Malling Borough Council,5/11/2022,0022026588/1,22026588, 708.43,Town & Country Housing Group,01385400,,Other Expenses,Disabled Facilities Grant Mand,P03AC000009908,
http://statistics.data.gov.uk/id/local-authority/29UP,Tonbridge & Malling Borough Council,5/11/2022,0022026589/1,22026589, 782.64,Town & Country Housing Group,01385400,,Other Expenses,Disabled Facilities Grant Mand,P03AC000009908,
http://statistics.data.gov.uk/id/local-authority/29UP,Tonbridge & Malling Borough Council,5/11/2022,0022026590/1,22026590, 1152.86,Town & Country Housing Group,01385400,,Other Expenses,Disabled Facilities Grant Mand,P03AC000009908,
http://statistics.data.gov.uk/id/local-authority/29UP,Tonbridge & Malling Borough Council,5/11/2022,0022026591/1,22026591, 770.23,Town & Country Housing Group,01385400,,Other Expenses,Disabled Facilities Grant Mand,P03AC000009908,
http://statistics.data.gov.uk/id/local-authority/29UP,Tonbridge & Malling Borough Council,5/11/2022,0022026592/1,22026592, 6522.00,Acorn Maintenance Services,01036000,,Other Expenses,Disabled Facilities Grant Mand,P03AC000009908,
http://statistics.data.gov.uk/id/local-authority/29UP,Tonbridge & Malling Borough Council,5/11/2022,0022026593/1,22026593, 8006.01,DCB (Kent) LTD,01326800,,Other Expenses,Disabled Facilities Grant Mand,P03AC000009908,
http://statistics.data.gov.uk/id/local-authority/29UP,Tonbridge & Malling Borough Council,5/11/2022,0022026594/1,22026594, 5348.86,Alfa Electrical LTD Inc AVCO Maintenance,01642200,,Other Expenses,Disabled Facilities Grant Mand,P03AC000009908,
http://statistics.data.gov.uk/id/local-authority/29UP,Tonbridge & Malling Borough Council,5/11/2022,0022026596/1,22026596, 15483.00,Craemer UK LTD,01616400,,Purchases,Garden Waste Recycling,H34ST000040101,210056700
http://statistics.data.gov.uk/id/local-authority/29UP,Tonbridge & Malling Borough Council,5/11/2022,0022026597/1,22026597, 14520.00,Craemer UK LTD,01616400,,Initial Furniture & Equipment,Green Waste Bin Growth/Replace,P02BC000009906,220003207
http://statistics.data.gov.uk/id/local-authority/29UP,Tonbridge & Malling Borough Council,5/11/2022,0022026598/1,22026598, 3405.00,House to Home Lettings Ltd ,01647600,,Temporary Accommodation,Homelessness,C01AA000044051,
http://statistics.data.gov.uk/id/local-authority/29UP,Tonbridge & Malling Borough Council,5/11/2022,0022026599/1,22026599, 7800.00,Kent Accommodation Ltd,01722000,,Temporary Accommodation,Homelessness,C01AA000044051,
http://statistics.data.gov.uk/id/local-authority/29UP,Tonbridge & Malling Borough Council,5/11/2022,0022026601/1,22026601, 930.00,Kent Property Services,01722500,,Temporary Accommodation,Homelessness,C01AA000044051,
http://statistics.data.gov.uk/id/local-authority/29UP,Tonbridge & Malling Borough Council,5/11/2022,0022026602/1,22026602, 7830.00,Less Homeless Ltd,01489300,,Temporary Accommodation,Homelessness,C01AA000044051,
http://statistics.data.gov.uk/id/local-authority/29UP,Tonbridge & Malling Borough Council,5/11/2022,0022026603/1,22026603, 300.00,Monitor Pest Control Ltd,01476700,,Other Expenses,Pest Control,H24SE000048010,
http://statistics.data.gov.uk/id/local-authority/29UP,Tonbridge & Malling Borough Council,5/11/2022,0022026604/1,22026604, 44373.00,Paramount Independent Property Suppliers,01595300,,Temporary Accommodation,Homelessness,C01AA000044051,
http://statistics.data.gov.uk/id/local-authority/29UP,Tonbridge & Malling Borough Council,5/11/2022,0022026605/1,22026605, 7695.00,Premier Property Providers,01785400,,Temporary Accommodation,Homelessness,C01AA000044051,
http://statistics.data.gov.uk/id/local-authority/29UP,Tonbridge & Malling Borough Council,5/11/2022,0022026606/1,22026606, 1544.82,Clarion Housing,01776300,,Repossessions Prevention Fund,Homelessness,C01AAC83644054,
http://statistics.data.gov.uk/id/local-authority/29UP,Tonbridge & Malling Borough Council,5/11/2022,0022026607/1,22026607, 9720.00,Simon Niblett Lettings,00072600,,Temporary Accommodation,Homelessness,C01AA000044051,
http://statistics.data.gov.uk/id/local-authority/29UP,Tonbridge & Malling Borough Council,5/11/2022,0022026608/3,22026608, 3300.00,Simon Niblett Lettings,00072600,,Temporary Accommodation,Homelessness,C01AA000044051,
http://statistics.data.gov.uk/id/local-authority/29UP,Tonbridge & Malling Borough Council,5/11/2022,0022026609/1,22026609, 3660.00,Simply Rented Ltd ,01691400,,Temporary Accommodation,Homelessness,C01AA000044051,
http://statistics.data.gov.uk/id/local-authority/29UP,Tonbridge & Malling Borough Council,5/11/2022,0022026610/1,22026610, 1500.00,Smart Property Professionals,01815100,,Temporary Accommodation,Homelessness,C01AA000044051,
http://statistics.data.gov.uk/id/local-authority/29UP,Tonbridge & Malling Borough Council,5/11/2022,0022026611/1,22026611, 2154.83,The Care Group-Housing & Care Trust,01699600,,Temporary Accommodation,Homelessness,C01AA000044051,
http://statistics.data.gov.uk/id/local-authority/29UP,Tonbridge & Malling Borough Council,5/11/2022,0022026612/1,22026612, 27282.00,Social & Community Care,01768400,,Temporary Accommodation,Homelessness,C01AA000044051,
http://statistics.data.gov.uk/id/local-authority/29UP,Tonbridge & Malling Borough Council,5/11/2022,0022026613/3,22026613, 9082.00,SPA CAFFE LIMITED,00127100,,Temporary Accommodation,Homelessness,C01AA000044051,
http://statistics.data.gov.uk/id/local-authority/29UP,Tonbridge & Malling Borough Council,5/11/2022,0022026614/3,22026614, 868.14,STM Environmental Consultants Limited,01552600,,Contaminated Land Site Inspect,Environmental Protection,H32SN000054018,
http://statistics.data.gov.uk/id/local-authority/29UP,Tonbridge & Malling Borough Council,5/11/2022,0022026615/1,22026615, 3511.58,Peabody South East LTD,01680900,,Other Expenses,Disabled Facilities Grant Mand,P03AC000009908,
http://statistics.data.gov.uk/id/local-authority/29UP,Tonbridge & Malling Borough Council,5/11/2022,0022026616/1,22026616, 7807.98,Accessible Solutions LTD,01539700,,Other Expenses,Disabled Facilities Grant Mand,P03AC000009908,
http://statistics.data.gov.uk/id/local-authority/29UP,Tonbridge & Malling Borough Council,5/11/2022,0022026617/1,22026617, 7.90,KCS,00054200,,Stationery,Env Hlth & Hsg Sals&Overheads,D01AVDV0643003,220003225
http://statistics.data.gov.uk/id/local-authority/29UP,Tonbridge & Malling Borough Council,5/11/2022,0022026618/1,22026618, 50.85,Maidstone Borough Council,01173700,,Council Tax,Homelessness,C01AAMAUN23002,
http://statistics.data.gov.uk/id/local-authority/29UP,Tonbridge & Malling Borough Council,5/11/2022,0022026619/1,22026619, 4999.50,Specialist Hygiene Services,01466100,,Contract Payments,Public Conveniences,H22SC000054001,
http://statistics.data.gov.uk/id/local-authority/29UP,Tonbridge & Malling Borough Council,5/11/2022,0022026620/1,22026620, 277.37,British Gas,01148500,,Electricity,Homelessness,C01AA000021002,
http://statistics.data.gov.uk/id/local-authority/29UP,Tonbridge & Malling Borough Council,5/11/2022,0022026621/1,22026621, 42.84,British Gas Services LTD,01260000,,Electricity,Homelessness,C01AAMAUN21002,
http://statistics.data.gov.uk/id/local-authority/29UP,Tonbridge & Malling Borough Council,5/11/2022,0022026621/2,22026621, 7.00,British Gas Services LTD,01260000,,Electricity,Homelessness,C01AAMAUN21002,
http://statistics.data.gov.uk/id/local-authority/29UP,Tonbridge & Malling Borough Council,5/11/2022,0031018638/1,31018638, 500.00,Traffic Enforcement Centre,00604200,,Adjudication & Enforcement Ser,Parking Off-Street,E10HA000044230,
http://statistics.data.gov.uk/id/local-authority/29UP,Tonbridge & Malling Borough Council,5/11/2022,0031018638/2,31018638, 500.00,Traffic Enforcement Centre,00604200,,Adjudication & Enforcement Ser,Parking On-Street,E10HD000044230,
http://statistics.data.gov.uk/id/local-authority/29UP,Tonbridge & Malling Borough Council,5/11/2022,0031018639/3,31018639, 59.67,Shell U.K. Oil Products Limited,01673300,,"Petrol, Diesel & Oil",Parking Off-Street,E10HA000030106,
http://statistics.data.gov.uk/id/local-authority/29UP,Tonbridge & Malling Borough Council,5/11/2022,0031018639/4,31018639, 59.67,Shell U.K. Oil Products Limited,01673300,,"Petrol, Diesel & Oil",Parking On-Street,E10HD000030106,
http://statistics.data.gov.uk/id/local-authority/29UP,Tonbridge & Malling Borough Council,5/11/2022,0031018640/3,31018640, 2493.17,Tonbridge & Malling Leisure Trust,01469100,,Ticket Refunds - Lower Castle,Parking Off-Street,E10HAE01344199,
http://statistics.data.gov.uk/id/local-authority/29UP,Tonbridge & Malling Borough Council,5/11/2022,0031018641/3,31018641, 2180.52,CDER Group,01773300,,Adjudication & Enforcement Ser,Parking Off-Street,E10HA000044230,
http://statistics.data.gov.uk/id/local-authority/29UP,Tonbridge & Malling Borough Council,5/11/2022,0031018644/1,31018644, 164.00,Flowbird Smart City UK Limited,00898700,,Maintenance - General,Parking Off-Street,E10HA000040135,310042816
http://statistics.data.gov.uk/id/local-authority/29UP,Tonbridge & Malling Borough Council,5/11/2022,0031018644/2,31018644, 33.00,Flowbird Smart City UK Limited,00898700,,Maintenance - General,Parking Off-Street,E10HA000040135,310042816
http://statistics.data.gov.uk/id/local-authority/29UP,Tonbridge & Malling Borough Council,5/11/2022,0031018645/1,31018645, 410.00,Wellden Land Surveys,01410600,,Professional Fees,Boro Drainage & Land Drainage,E20MA000044001,310042644
http://statistics.data.gov.uk/id/local-authority/29UP,Tonbridge & Malling Borough Council,5/11/2022,0031018645/2,31018645, 40.00,Wellden Land Surveys,01410600,,Professional Fees,Boro Drainage & Land Drainage,E20MA000044001,310042644
http://statistics.data.gov.uk/id/local-authority/29UP,Tonbridge & Malling Borough Council,5/11/2022,0031018647/1,31018647, 148.50,KCS,00054200,,Purchases,Civil Contingencies,D33NA000040101,310042784
http://statistics.data.gov.uk/id/local-authority/29UP,Tonbridge & Malling Borough Council,5/11/2022,0031018649/1,31018649, 450.00,Wellden Land Surveys,01410600,,Professional Fees,Boro Drainage & Land Drainage,E20MA000044001,
http://statistics.data.gov.uk/id/local-authority/29UP,Tonbridge & Malling Borough Council,5/11/2022,0031018653/1,31018653, 2.16,Npower Ltd,01675800,,Electricity,Parking Off-Street,E10HA000021002,
http://statistics.data.gov.uk/id/local-authority/29UP,Tonbridge & Malling Borough Council,5/11/2022,0031018653/2,31018653, 55.63,Npower Ltd,01675800,,Electricity,Parking Off-Street,E10HA000021002,
http://statistics.data.gov.uk/id/local-authority/29UP,Tonbridge & Malling Borough Council,5/11/2022,0031018654/1,31018654, 140.41,Npower Ltd,01675800,,Electricity,Parking Off-Street,E10HA000021002,
http://statistics.data.gov.uk/id/local-authority/29UP,Tonbridge & Malling Borough Council,5/11/2022,0031018654/2,31018654, 6.34,Npower Ltd,01675800,,Electricity,Parking Off-Street,E10HA000021002,
http://statistics.data.gov.uk/id/local-authority/29UP,Tonbridge & Malling Borough Council,5/11/2022,0031018655/1,31018655, 1.14,Npower Ltd,01675800,,Electricity,Parking Off-Street,E10HA000021002,
http://statistics.data.gov.uk/id/local-authority/29UP,Tonbridge & Malling Borough Council,5/11/2022,0031018655/2,31018655, 29.98,Npower Ltd,01675800,,Electricity,Parking Off-Street,E10HA000021002,
http://statistics.data.gov.uk/id/local-authority/29UP,Tonbridge & Malling Borough Council,5/11/2022,0031018657/1,31018657, 37.50,G4S Cash Solutions ( UK ) Ltd,01398400,,Cash Collection,Haysden Country Park,B22LC000044007,
http://statistics.data.gov.uk/id/local-authority/29UP,Tonbridge & Malling Borough Council,5/11/2022,0031018657/10,31018657, 127.50,G4S Cash Solutions ( UK ) Ltd,01398400,,Cash Collection,Parking Off-Street,E10HAE00144007,
http://statistics.data.gov.uk/id/local-authority/29UP,Tonbridge & Malling Borough Council,5/11/2022,0031018657/11,31018657, 127.50,G4S Cash Solutions ( UK ) Ltd,01398400,,Cash Collection,Parking Off-Street,E10HAE00144007,
http://statistics.data.gov.uk/id/local-authority/29UP,Tonbridge & Malling Borough Council,5/11/2022,0031018657/12,31018657, 127.50,G4S Cash Solutions ( UK ) Ltd,01398400,,Cash Collection,Parking Off-Street,E10HAE00144007,
http://statistics.data.gov.uk/id/local-authority/29UP,Tonbridge & Malling Borough Council,5/11/2022,0031018657/13,31018657, 127.50,G4S Cash Solutions ( UK ) Ltd,01398400,,Cash Collection,Parking Off-Street,E10HAE00144007,
http://statistics.data.gov.uk/id/local-authority/29UP,Tonbridge & Malling Borough Council,5/11/2022,0031018657/14,31018657, 105.00,G4S Cash Solutions ( UK ) Ltd,01398400,,Cash Collection,Parking Off-Street,E10HAE00144007,
http://statistics.data.gov.uk/id/local-authority/29UP,Tonbridge & Malling Borough Council,5/11/2022,0031018657/15,31018657, 37.50,G4S Cash Solutions ( UK ) Ltd,01398400,,Cash Collection,Parking Off-Street,E10HAE00344007,
http://statistics.data.gov.uk/id/local-authority/29UP,Tonbridge & Malling Borough Council,5/11/2022,0031018657/16,31018657, 82.50,G4S Cash Solutions ( UK ) Ltd,01398400,,Cash Collection,Parking Off-Street,E10HAE00444007,
http://statistics.data.gov.uk/id/local-authority/29UP,Tonbridge & Malling Borough Council,5/11/2022,0031018657/17,31018657, 75.00,G4S Cash Solutions ( UK ) Ltd,01398400,,Cash Collection,Parking Off-Street,E10HAE00444007,
http://statistics.data.gov.uk/id/local-authority/29UP,Tonbridge & Malling Borough Council,5/11/2022,0031018657/18,31018657, 127.50,G4S Cash Solutions ( UK ) Ltd,01398400,,Cash Collection,Parking Off-Street,E10HAE00444007,
http://statistics.data.gov.uk/id/local-authority/29UP,Tonbridge & Malling Borough Council,5/11/2022,0031018657/19,31018657, 127.50,G4S Cash Solutions ( UK ) Ltd,01398400,,Cash Collection,Parking Off-Street,E10HAE00444007,
http://statistics.data.gov.uk/id/local-authority/29UP,Tonbridge & Malling Borough Council,5/11/2022,0031018657/2,31018657, 37.50,G4S Cash Solutions ( UK ) Ltd,01398400,,Cash Collection,Haysden Country Park,B22LC000044007,
http://statistics.data.gov.uk/id/local-authority/29UP,Tonbridge & Malling Borough Council,5/11/2022,0031018657/20,31018657, 90.00,G4S Cash Solutions ( UK ) Ltd,01398400,,Cash Collection,Parking Off-Street,E10HAE00544007,
http://statistics.data.gov.uk/id/local-authority/29UP,Tonbridge & Malling Borough Council,5/11/2022,0031018657/21,31018657, 90.00,G4S Cash Solutions ( UK ) Ltd,01398400,,Cash Collection,Parking Off-Street,E10HAE00544007,
http://statistics.data.gov.uk/id/local-authority/29UP,Tonbridge & Malling Borough Council,5/11/2022,0031018657/22,31018657, 37.50,G4S Cash Solutions ( UK ) Ltd,01398400,,Cash Collection,Parking Off-Street,E10HAE00644007,
http://statistics.data.gov.uk/id/local-authority/29UP,Tonbridge & Malling Borough Council,5/11/2022,0031018657/23,31018657, 37.50,G4S Cash Solutions ( UK ) Ltd,01398400,,Cash Collection,Parking Off-Street,E10HAE00644007,
http://statistics.data.gov.uk/id/local-authority/29UP,Tonbridge & Malling Borough Council,5/11/2022,0031018657/24,31018657, 82.50,G4S Cash Solutions ( UK ) Ltd,01398400,,Cash Collection,Parking Off-Street,E10HAE01144007,
http://statistics.data.gov.uk/id/local-authority/29UP,Tonbridge & Malling Borough Council,5/11/2022,0031018657/25,31018657, 52.50,G4S Cash Solutions ( UK ) Ltd,01398400,,Cash Collection,Parking Off-Street,E10HAE01244007,
http://statistics.data.gov.uk/id/local-authority/29UP,Tonbridge & Malling Borough Council,5/11/2022,0031018657/26,31018657, 142.50,G4S Cash Solutions ( UK ) Ltd,01398400,,Cash Collection,Parking Off-Street,E10HAE01344007,
http://statistics.data.gov.uk/id/local-authority/29UP,Tonbridge & Malling Borough Council,5/11/2022,0031018657/27,31018657, 90.00,G4S Cash Solutions ( UK ) Ltd,01398400,,Cash Collection,Parking Off-Street,E10HAE01344007,
http://statistics.data.gov.uk/id/local-authority/29UP,Tonbridge & Malling Borough Council,5/11/2022,0031018657/28,31018657, 90.00,G4S Cash Solutions ( UK ) Ltd,01398400,,Cash Collection,Parking Off-Street,E10HAE01444007,
http://statistics.data.gov.uk/id/local-authority/29UP,Tonbridge & Malling Borough Council,5/11/2022,0031018657/29,31018657, 142.50,G4S Cash Solutions ( UK ) Ltd,01398400,,Cash Collection,Parking Off-Street,E10HAE01544007,
http://statistics.data.gov.uk/id/local-authority/29UP,Tonbridge & Malling Borough Council,5/11/2022,0031018657/3,31018657, 30.00,G4S Cash Solutions ( UK ) Ltd,01398400,,Cash Collection,Haysden Country Park,B22LC000044007,
http://statistics.data.gov.uk/id/local-authority/29UP,Tonbridge & Malling Borough Council,5/11/2022,0031018657/30,31018657, 142.50,G4S Cash Solutions ( UK ) Ltd,01398400,,Cash Collection,Parking Off-Street,E10HAE01544007,
http://statistics.data.gov.uk/id/local-authority/29UP,Tonbridge & Malling Borough Council,5/11/2022,0031018657/31,31018657, 82.50,G4S Cash Solutions ( UK ) Ltd,01398400,,Cash Collection,Parking Off-Street,E10HAE01744007,
http://statistics.data.gov.uk/id/local-authority/29UP,Tonbridge & Malling Borough Council,5/11/2022,0031018657/32,31018657, 135.00,G4S Cash Solutions ( UK ) Ltd,01398400,,Cash Collection,Parking Off-Street,E10HAE01744007,
http://statistics.data.gov.uk/id/local-authority/29UP,Tonbridge & Malling Borough Council,5/11/2022,0031018657/33,31018657, 30.00,G4S Cash Solutions ( UK ) Ltd,01398400,,Cash Collection,Parking Off-Street,E10HAE02044007,
http://statistics.data.gov.uk/id/local-authority/29UP,Tonbridge & Malling Borough Council,5/11/2022,0031018657/34,31018657, 90.00,G4S Cash Solutions ( UK ) Ltd,01398400,,Cash Collection,Parking Off-Street,E10HAE02244007,
http://statistics.data.gov.uk/id/local-authority/29UP,Tonbridge & Malling Borough Council,5/11/2022,0031018657/35,31018657, 135.00,G4S Cash Solutions ( UK ) Ltd,01398400,,Cash Collection,Parking Off-Street,E10HAE02344007,
http://statistics.data.gov.uk/id/local-authority/29UP,Tonbridge & Malling Borough Council,5/11/2022,0031018657/36,31018657, 135.00,G4S Cash Solutions ( UK ) Ltd,01398400,,Cash Collection,Parking Off-Street,E10HAE02344007,
http://statistics.data.gov.uk/id/local-authority/29UP,Tonbridge & Malling Borough Council,5/11/2022,0031018657/37,31018657, 37.50,G4S Cash Solutions ( UK ) Ltd,01398400,,Cash Collection,Parking Off-Street,E10HAE04244007,
http://statistics.data.gov.uk/id/local-authority/29UP,Tonbridge & Malling Borough Council,5/11/2022,0031018657/38,31018657, 75.00,G4S Cash Solutions ( UK ) Ltd,01398400,,Cash Collection,Parking Off-Street,E10HAE04544007,
http://statistics.data.gov.uk/id/local-authority/29UP,Tonbridge & Malling Borough Council,5/11/2022,0031018657/39,31018657, 52.50,G4S Cash Solutions ( UK ) Ltd,01398400,,Cash Collection,Parking Off-Street,E10HAE04544007,
http://statistics.data.gov.uk/id/local-authority/29UP,Tonbridge & Malling Borough Council,5/11/2022,0031018657/4,31018657, 45.00,G4S Cash Solutions ( UK ) Ltd,01398400,,Cash Collection,Leybourne Lakes Country Park,B22LK000044007,
http://statistics.data.gov.uk/id/local-authority/29UP,Tonbridge & Malling Borough Council,5/11/2022,0031018657/40,31018657, 7.50,G4S Cash Solutions ( UK ) Ltd,01398400,,Cash Collection,Parking On-Street,E10HD000044007,
http://statistics.data.gov.uk/id/local-authority/29UP,Tonbridge & Malling Borough Council,5/11/2022,0031018657/41,31018657, 7.50,G4S Cash Solutions ( UK ) Ltd,01398400,,Cash Collection,Parking On-Street,E10HD000044007,
http://statistics.data.gov.uk/id/local-authority/29UP,Tonbridge & Malling Borough Council,5/11/2022,0031018657/42,31018657, 7.50,G4S Cash Solutions ( UK ) Ltd,01398400,,Cash Collection,Parking On-Street,E10HD000044007,
http://statistics.data.gov.uk/id/local-authority/29UP,Tonbridge & Malling Borough Council,5/11/2022,0031018657/43,31018657, 30.00,G4S Cash Solutions ( UK ) Ltd,01398400,,Cash Collection,Parking On-Street,E10HD000044007,
http://statistics.data.gov.uk/id/local-authority/29UP,Tonbridge & Malling Borough Council,5/11/2022,0031018657/44,31018657, 30.00,G4S Cash Solutions ( UK ) Ltd,01398400,,Cash Collection,Parking On-Street,E10HD000044007,
http://statistics.data.gov.uk/id/local-authority/29UP,Tonbridge & Malling Borough Council,5/11/2022,0031018657/45,31018657, 30.00,G4S Cash Solutions ( UK ) Ltd,01398400,,Cash Collection,Parking On-Street,E10HD000044007,
http://statistics.data.gov.uk/id/local-authority/29UP,Tonbridge & Malling Borough Council,5/11/2022,0031018657/46,31018657, 30.00,G4S Cash Solutions ( UK ) Ltd,01398400,,Cash Collection,Parking On-Street,E10HD000044007,
http://statistics.data.gov.uk/id/local-authority/29UP,Tonbridge & Malling Borough Council,5/11/2022,0031018657/5,31018657, 45.00,G4S Cash Solutions ( UK ) Ltd,01398400,,Cash Collection,Leybourne Lakes Country Park,B22LK000044007,
http://statistics.data.gov.uk/id/local-authority/29UP,Tonbridge & Malling Borough Council,5/11/2022,0031018657/6,31018657, 127.50,G4S Cash Solutions ( UK ) Ltd,01398400,,Cash Collection,Parking Off-Street,E10HAE00144007,
http://statistics.data.gov.uk/id/local-authority/29UP,Tonbridge & Malling Borough Council,5/11/2022,0031018657/7,31018657, 127.50,G4S Cash Solutions ( UK ) Ltd,01398400,,Cash Collection,Parking Off-Street,E10HAE00144007,
http://statistics.data.gov.uk/id/local-authority/29UP,Tonbridge & Malling Borough Council,5/11/2022,0031018657/8,31018657, 127.50,G4S Cash Solutions ( UK ) Ltd,01398400,,Cash Collection,Parking Off-Street,E10HAE00144007,
http://statistics.data.gov.uk/id/local-authority/29UP,Tonbridge & Malling Borough Council,5/11/2022,0031018657/9,31018657, 127.50,G4S Cash Solutions ( UK ) Ltd,01398400,,Cash Collection,Parking Off-Street,E10HAE00144007,
http://statistics.data.gov.uk/id/local-authority/29UP,Tonbridge & Malling Borough Council,5/11/2022,0032009528/3,32009528, 10849.94,Arc4,01652100,,Professional Fees,Housing Strategy,C12FB000044001,
http://statistics.data.gov.uk/id/local-authority/29UP,Tonbridge & Malling Borough Council,5/11/2022,0032009529/1,32009529, 321.30,KM Media Group Ltd,00053900,,Advertising General,Development Management,A01ABZ99944216,320003405
http://statistics.data.gov.uk/id/local-authority/29UP,Tonbridge & Malling Borough Council,5/11/2022,0032009530/1,32009530, 2250.00,LLoyd Bore Ltd,01818500,,Professional Fees,Open Spaces & Amenity Areas,B22LE000044001,210056536
http://statistics.data.gov.uk/id/local-authority/29UP,Tonbridge & Malling Borough Council,5/11/2022,0032009531/3,32009531, 3106.96,G2 Recruitment Solutions,01786000,,Temporary Staff,Planning Sals&Overheads,D01AJDJ0111300,
http://statistics.data.gov.uk/id/local-authority/29UP,Tonbridge & Malling Borough Council,5/11/2022,0032009532/3,32009532, 2479.00,G2 Recruitment Solutions,01786000,,Temporary Staff,Planning Sals&Overheads,D01AJDJ0111300,
http://statistics.data.gov.uk/id/local-authority/29UP,Tonbridge & Malling Borough Council,5/11/2022,0032009533/3,32009533, 1702.00,Vivid Resourcing,01773700,,Temporary Staff,Planning Sals&Overheads,D01AJDJ0111300,
http://statistics.data.gov.uk/id/local-authority/29UP,Tonbridge & Malling Borough Council,5/11/2022,0032009534/3,32009534, 1250.00,Tunbridge Wells Borough Council,00844600,,Temporary Staff,Planning Sals&Overheads,D01AJDJ0311300,
http://statistics.data.gov.uk/id/local-authority/29UP,Tonbridge & Malling Borough Council,5/11/2022,0032009535/3,32009535, 1892.00,The Oyster Partnership,01196400,,Temporary Staff,Planning Sals&Overheads,D01AJDJ0111300,
http://statistics.data.gov.uk/id/local-authority/29UP,Tonbridge & Malling Borough Council,5/11/2022,0032009539/3,32009539, 1687.50,Carrington West Limited,01844500,,Temporary Staff,Planning Sals&Overheads,D01AJDJ0111300,
http://statistics.data.gov.uk/id/local-authority/29UP,Tonbridge & Malling Borough Council,5/11/2022,0032009540/1,32009540, 278.46,KM Media Group Ltd,00053900,,Advertising General,Development Management,A01ABZ99944216,320003406
http://statistics.data.gov.uk/id/local-authority/29UP,Tonbridge & Malling Borough Council,5/11/2022,0032009543/1,32009543, 150.00,Environment Agency,00418100,,Development of Local Plan,Development of Local Plan,A01AE000044023,320003400
http://statistics.data.gov.uk/id/local-authority/29UP,Tonbridge & Malling Borough Council,5/11/2022,0041034279/1,41034279, 15000.00,Grant Thornton UK LLP,01407400,,Audit Fees,Housing Benefits,C05CL000044223,410032177
http://statistics.data.gov.uk/id/local-authority/29UP,Tonbridge & Malling Borough Council,5/11/2022,0041034280/1,41034280, 971.25,Morgan Hunt UK Ltd,01086900,,Temporary Staff,Finance Sals&Overheads,D01AFDF1111300,
http://statistics.data.gov.uk/id/local-authority/29UP,Tonbridge & Malling Borough Council,5/11/2022,0041034281/1,41034281, 1064.50,Morgan Hunt UK Ltd,01086900,,Temporary Staff,Finance Sals&Overheads,D01AFDF1111300,
http://statistics.data.gov.uk/id/local-authority/29UP,Tonbridge & Malling Borough Council,5/11/2022,0041034282/1,41034282, 508.13,KH Recruitment Ltd,01738900,,Temporary Staff,Finance Sals&Overheads,D01AFDF1111300,
http://statistics.data.gov.uk/id/local-authority/29UP,Tonbridge & Malling Borough Council,5/11/2022,0041034283/1,41034283, 96.24,Adelante Software Limited,01393800,812115871,Credit Card Commission,Banking Arrangements,D43QK000044082,
http://statistics.data.gov.uk/id/local-authority/29UP,Tonbridge & Malling Borough Council,5/11/2022,0041034284/1,41034284, 1143.67,Maidstone Borough Council,01173700,,Bailiffs Commission,Local Revenue & NNDR Collect,D41QA000044075,
http://statistics.data.gov.uk/id/local-authority/29UP,Tonbridge & Malling Borough Council,5/11/2022,0041034285/1,41034285, 143.84,Maidstone Borough Council,01173700,,Bailiffs Commission,Local Revenue & NNDR Collect,D41QA000044075,
http://statistics.data.gov.uk/id/local-authority/29UP,Tonbridge & Malling Borough Council,5/11/2022,0041034286/1,41034286, 1611.33,Rundle & Co Ltd,00087200,,Bailiffs Commission,Local Revenue & NNDR Collect,D41QA000044075,
http://statistics.data.gov.uk/id/local-authority/29UP,Tonbridge & Malling Borough Council,5/11/2022,0041034287/3,41034287, 1538.04,The Oyster Partnership,01196400,,Temporary Staff,Finance Sals&Overheads,D01AFDF1111300,
http://statistics.data.gov.uk/id/local-authority/29UP,Tonbridge & Malling Borough Council,5/11/2022,0041034288/1,41034288, 59.14,King & Shaxson Investments,01411100,,Professional Fees,Treasury Management,D43QT000044001,
http://statistics.data.gov.uk/id/local-authority/29UP,Tonbridge & Malling Borough Council,5/11/2022,0041034290/1,41034290, 15.20,HSBC Bank Plc,01740800,,Bank Charges,Banking Arrangements,D43QK000044222,
http://statistics.data.gov.uk/id/local-authority/29UP,Tonbridge & Malling Borough Council,5/11/2022,0041034291/1,41034291, 5000.00,Seekers NatWest Bank Plc,01837000,,Other Expenses,Homelessness,C01AACV1948010,
http://statistics.data.gov.uk/id/local-authority/29UP,Tonbridge & Malling Borough Council,5/11/2022,0051008694/1,51008694, 850.00,Wagon Films Limited/Smartphone film scho,01847000,,Ext Fees/Prof & Tech,Training,D10DCDA1213561,510010571
http://statistics.data.gov.uk/id/local-authority/29UP,Tonbridge & Malling Borough Council,5/11/2022,0051008695/1,51008695, 370.00,Firebrand Training Ltd,01716800,,Ext Fees/IT Training,Training,D10DCDN0113564,510010573
http://statistics.data.gov.uk/id/local-authority/29UP,Tonbridge & Malling Borough Council,5/12/2022,0041034293/1,41034293, 11089.63,Local Government Association,01186000,,Subscriptions,Committee Administration,D29LL000047002,
http://statistics.data.gov.uk/id/local-authority/29UP,Tonbridge & Malling Borough Council,5/12/2022,0041034294/1,41034294, 15.00,WorldPay ,01568000,,Credit Card Commission,Banking Arrangements,D43QK000044082,
http://statistics.data.gov.uk/id/local-authority/29UP,Tonbridge & Malling Borough Council,5/12/2022,0041034295/1,41034295, 36.38,WorldPay ,01568000,,Credit Card Commission,Banking Arrangements,D43QK000044082,
http://statistics.data.gov.uk/id/local-authority/29UP,Tonbridge & Malling Borough Council,5/12/2022,0041034296/1,41034296, 115.25,WorldPay ,01568000,,Credit Card Commission,Banking Arrangements,D43QK000044082,
http://statistics.data.gov.uk/id/local-authority/29UP,Tonbridge & Malling Borough Council,5/12/2022,0041034297/1,41034297, 824.32,WorldPay ,01568000,,Credit Card Commission,Banking Arrangements,D43QK000044082,
http://statistics.data.gov.uk/id/local-authority/29UP,Tonbridge & Malling Borough Council,5/12/2022,0041034298/1,41034298, 2641.26,WorldPay ,01568000,,Credit Card Commission,Banking Arrangements,D43QK000044082,
http://statistics.data.gov.uk/id/local-authority/29UP,Tonbridge & Malling Borough Council,5/12/2022,0041034298/2,41034298, 168.35,WorldPay ,01568000,,Credit Card Commission,Banking Arrangements,D43QK000044082,
http://statistics.data.gov.uk/id/local-authority/29UP,Tonbridge & Malling Borough Council,5/17/2022,0022026643/3,22026643, 845.98,Vivid Resourcing,01773700,,Temporary Staff,Env Hlth & Hsg Sals&Overheads,D01AVDV0711300,
http://statistics.data.gov.uk/id/local-authority/29UP,Tonbridge & Malling Borough Council,5/17/2022,0041034299/10,41034299, 116.89,National Westminster Bank Plc,00894500,,Sales,TIC Stock Account,K18AX000002002,
http://statistics.data.gov.uk/id/local-authority/29UP,Tonbridge & Malling Borough Council,5/17/2022,0041034299/11,41034299, 53.67,National Westminster Bank Plc,00894500,,Sales,TIC Stock Account,K18AX000002002,
http://statistics.data.gov.uk/id/local-authority/29UP,Tonbridge & Malling Borough Council,5/17/2022,0041034299/12,41034299, 47.36,National Westminster Bank Plc,00894500,,Sales,TIC Stock Account,K18AX000002002,
http://statistics.data.gov.uk/id/local-authority/29UP,Tonbridge & Malling Borough Council,5/17/2022,0041034299/13,41034299, 52.67,National Westminster Bank Plc,00894500,,Sales,TIC Stock Account,K18AX000002002,
http://statistics.data.gov.uk/id/local-authority/29UP,Tonbridge & Malling Borough Council,5/17/2022,0041034299/14,41034299, 20.18,National Westminster Bank Plc,00894500,,Sales,TIC Stock Account,K18AX000002002,
http://statistics.data.gov.uk/id/local-authority/29UP,Tonbridge & Malling Borough Council,5/17/2022,0041034299/7,41034299, 17.49,National Westminster Bank Plc,00894500,,Software Hire & Support,Information Technology,D27KD000044059,
http://statistics.data.gov.uk/id/local-authority/29UP,Tonbridge & Malling Borough Council,5/17/2022,0041034299/8,41034299, 9.00,National Westminster Bank Plc,00894500,,Delivery Expenses,Information Technology,D27KD000044069,
http://statistics.data.gov.uk/id/local-authority/29UP,Tonbridge & Malling Borough Council,5/17/2022,0041034299/9,41034299, 190.14,National Westminster Bank Plc,00894500,,Subscriptions,Information Technology,D27KD000047002,
http://statistics.data.gov.uk/id/local-authority/29UP,Tonbridge & Malling Borough Council,5/18/2022,0011044323/1,11044323, 56.00,Willow Pumps Ltd,00114100,,BRREP Servicing - Pumping Stn,Tonbridge Swimming Pool,M15HBP20001931,110069172
http://statistics.data.gov.uk/id/local-authority/29UP,Tonbridge & Malling Borough Council,5/18/2022,0011044323/2,11044323, 112.00,Willow Pumps Ltd,00114100,,BRREP Servicing - Pumping Stn,Ton Sportsgrnd Bldgs / Toilets,M15HCP20001931,110069172
http://statistics.data.gov.uk/id/local-authority/29UP,Tonbridge & Malling Borough Council,5/18/2022,0011044323/3,11044323, 112.00,Willow Pumps Ltd,00114100,,BRREP Servicing - Pumping Stn,Vale Rise Depot,M15LCP20001931,110069172
http://statistics.data.gov.uk/id/local-authority/29UP,Tonbridge & Malling Borough Council,5/18/2022,0011044324/1,11044324, 574.00,BML Building Services Ltd,01505000,,BRREP Window/door repairs,Leis Man Poult Wood Golf Centr,M15HEP20001919,110069497
http://statistics.data.gov.uk/id/local-authority/29UP,Tonbridge & Malling Borough Council,5/18/2022,0011044325/1,11044325, 348.00,Hadene Engineering Ltd,00041900,,Other Expenses,Homeless Accommodation,P03AX000009908,110069528
http://statistics.data.gov.uk/id/local-authority/29UP,Tonbridge & Malling Borough Council,5/18/2022,0011044326/1,11044326, 285.00,SECOM plc,01084600,445838322,BRREP Servicing-roller shutter,Ton Sportsgrnd Bldgs / Toilets,M15HCP20001928,110069514
http://statistics.data.gov.uk/id/local-authority/29UP,Tonbridge & Malling Borough Council,5/18/2022,0011044327/1,11044327, 4313.00,Loxton Installations Ltd,01278800,,Other Expenses,Homeless Accommodation,P03AX000009908,110069471
http://statistics.data.gov.uk/id/local-authority/29UP,Tonbridge & Malling Borough Council,5/18/2022,0011044328/1,11044328, 65.00,Envirocure Limited,00963300,,BRREP Legionella Certification,PC - General,M15JAP30001995,110069177
http://statistics.data.gov.uk/id/local-authority/29UP,Tonbridge & Malling Borough Council,5/18/2022,0011044329/3,11044329, 1600.98,KH Recruitment Ltd,01738900,,Temporary Staff,Personnel Sals&Overheads,D01ABDB0311300,
http://statistics.data.gov.uk/id/local-authority/29UP,Tonbridge & Malling Borough Council,5/18/2022,0011044330/1,11044330, 250.00,A One Event Services,01776600,,Re-opening High Streets,Eco Dev & Reg Gen Bus Support,D52TDCV1948076,
http://statistics.data.gov.uk/id/local-authority/29UP,Tonbridge & Malling Borough Council,5/18/2022,0011044331/1,11044331, 79.51,Network Rail,00871700,,Rents,Licences - Fee Paying,H27SH000022001,
http://statistics.data.gov.uk/id/local-authority/29UP,Tonbridge & Malling Borough Council,5/18/2022,0011044332/1,11044332, 315.00,The Royal British Legion Industries,00085300,,Economic Development & Regen,Eco Dev & Reg Gen Bus Support,D52TD000047027,
http://statistics.data.gov.uk/id/local-authority/29UP,Tonbridge & Malling Borough Council,5/18/2022,0011044333/1,11044333, 1712.76,Ricoh UK Ltd,01402300,,Maintenance - General,Printing,D22GA000040135,
http://statistics.data.gov.uk/id/local-authority/29UP,Tonbridge & Malling Borough Council,5/18/2022,0011044334/1,11044334, 2.24,Royal Mail,00086200,,Purchases,Mailsort Stock Account,K37BR000001002,
http://statistics.data.gov.uk/id/local-authority/29UP,Tonbridge & Malling Borough Council,5/18/2022,0011044334/2,11044334, 1.75,Royal Mail,00086200,,Purchases,Mailsort Stock Account,K37BR000001002,
http://statistics.data.gov.uk/id/local-authority/29UP,Tonbridge & Malling Borough Council,5/18/2022,0011044334/3,11044334, 855.83,Royal Mail,00086200,,Purchases,Mailsort Stock Account,K37BR000001002,
http://statistics.data.gov.uk/id/local-authority/29UP,Tonbridge & Malling Borough Council,5/18/2022,0011044335/1,11044335, 174.43,Royal Mail,00086200,,Purchases,Mailsort Stock Account,K37BR000001002,
http://statistics.data.gov.uk/id/local-authority/29UP,Tonbridge & Malling Borough Council,5/18/2022,0011044336/1,11044336, 23.33,Tonbridge & Malling Leisure Trust,01469100,,Professional Fees,Land Review,D40PSTON144001,
http://statistics.data.gov.uk/id/local-authority/29UP,Tonbridge & Malling Borough Council,5/18/2022,0011044336/2,11044336, 249.00,Tonbridge & Malling Leisure Trust,01469100,,Professional Fees,Land Review,D40PSTON144001,
http://statistics.data.gov.uk/id/local-authority/29UP,Tonbridge & Malling Borough Council,5/18/2022,0011044338/1,11044338, 283.74,Canon (UK) Limited,00298700,,Purchases - Paper,Printing,D22GA000040102,
http://statistics.data.gov.uk/id/local-authority/29UP,Tonbridge & Malling Borough Council,5/18/2022,0011044339/1,11044339, 26.40,East Sussex Fire Ltd,01843100,,BRREP General Maintenance,Land Review,M15MAP49901900,
http://statistics.data.gov.uk/id/local-authority/29UP,Tonbridge & Malling Borough Council,5/18/2022,0011044340/1,11044340, 54.32,REDACTED PERSONAL DATA,00012900,,Other Expenses,Mayoral & Other Member Support,D29LX000048010,
http://statistics.data.gov.uk/id/local-authority/29UP,Tonbridge & Malling Borough Council,5/18/2022,0011044341/1,11044341, 54.00,Kent Crisps Ltd,01806500,,Purchases,TIC Stock Account,K18AX000001002,
http://statistics.data.gov.uk/id/local-authority/29UP,Tonbridge & Malling Borough Council,5/18/2022,0011044342/1,11044342, 309.36,Key Craft,01148600,,Purchases,TIC Stock Account,K18AX000001002,
http://statistics.data.gov.uk/id/local-authority/29UP,Tonbridge & Malling Borough Council,5/18/2022,0011044343/1,11044343, 1862.67,GSF SANDYLIGHT LTD,01705300,,Temporary Staff,Admin & Prop Sals&Overheads,D01AADA0511300,
http://statistics.data.gov.uk/id/local-authority/29UP,Tonbridge & Malling Borough Council,5/18/2022,0011044346/1,11044346, 1217.80,Sellick Partnership Group Limited,01336800,,Temporary Staff,Legal Sals&Overheads,D01ARDR0011300,
http://statistics.data.gov.uk/id/local-authority/29UP,Tonbridge & Malling Borough Council,5/18/2022,0011044347/1,11044347, 5000.00,North Downs Cheese Company,01848300,,Economic Development & Regen,Eco Dev & Reg Gen Bus Support,D52TD000047027,
http://statistics.data.gov.uk/id/local-authority/29UP,Tonbridge & Malling Borough Council,5/18/2022,0011044348/1,11044348, 276.25,Chubb Fire & Security Ltd,00115400,174605362,BRREP Servicing-IntruderAlarm,Angel Centre,M15HAP20001939,
http://statistics.data.gov.uk/id/local-authority/29UP,Tonbridge & Malling Borough Council,5/18/2022,0011044349/1,11044349, 278.52,Chubb Fire & Security Ltd,00115400,174605362,BRREP Servicing-IntruderAlarm,Angel Centre,M15HAP20001939,
http://statistics.data.gov.uk/id/local-authority/29UP,Tonbridge & Malling Borough Council,5/18/2022,0011044350/1,11044350, 129.00,BML Building Services Ltd,01505000,,BRREP Response - General,PC - General,M15JAP50001997,
http://statistics.data.gov.uk/id/local-authority/29UP,Tonbridge & Malling Borough Council,5/18/2022,0011044351/1,11044351, 102.00,BML Building Services Ltd,01505000,,BRREP Window/door repairs,PC - General,M15JAP20001919,
http://statistics.data.gov.uk/id/local-authority/29UP,Tonbridge & Malling Borough Council,5/18/2022,0011044352/1,11044352, 65.00,Envirocure Limited,00963300,,BRREP Legionella Certification,PC - General,M15JAP30001995,
http://statistics.data.gov.uk/id/local-authority/29UP,Tonbridge & Malling Borough Council,5/18/2022,0011044353/1,11044353, 1222.75,Papo UK Ltd,01238600,,Purchases,TIC Stock Account,K18AX000001002,
http://statistics.data.gov.uk/id/local-authority/29UP,Tonbridge & Malling Borough Council,5/18/2022,0011044354/1,11044354, 5123.72,Retroelectric Ltd,01831000,,Economic Development & Regen,Eco Dev & Reg Gen Bus Support,D52TD000047027,
http://statistics.data.gov.uk/id/local-authority/29UP,Tonbridge & Malling Borough Council,5/18/2022,0012008332/1,12008332, 3.10,O2 UK Ltd,01268000,,Telephones - General,Open Spaces & Amenity Areas,B22LE000045010,
http://statistics.data.gov.uk/id/local-authority/29UP,Tonbridge & Malling Borough Council,5/18/2022,0012008332/10,12008332, 9.00,O2 UK Ltd,01268000,,Mobile Telephones,Technical Sals&Overheads,D01AEDE0245013,
http://statistics.data.gov.uk/id/local-authority/29UP,Tonbridge & Malling Borough Council,5/18/2022,0012008332/11,12008332, 40.86,O2 UK Ltd,01268000,,Mobile Telephones,Technical Sals&Overheads,D01AEDE0445013,
http://statistics.data.gov.uk/id/local-authority/29UP,Tonbridge & Malling Borough Council,5/18/2022,0012008332/12,12008332, 3.00,O2 UK Ltd,01268000,,Mobile Telephones,Technical Sals&Overheads,D01AEDE0545013,
http://statistics.data.gov.uk/id/local-authority/29UP,Tonbridge & Malling Borough Council,5/18/2022,0012008332/13,12008332, 12.00,O2 UK Ltd,01268000,,Mobile Telephones,Finance Sals&Overheads,D01AFDF0045013,
http://statistics.data.gov.uk/id/local-authority/29UP,Tonbridge & Malling Borough Council,5/18/2022,0012008332/14,12008332, 6.00,O2 UK Ltd,01268000,,Mobile Telephones,Finance Sals&Overheads,D01AFDF0945013,
http://statistics.data.gov.uk/id/local-authority/29UP,Tonbridge & Malling Borough Council,5/18/2022,0012008332/15,12008332, 12.00,O2 UK Ltd,01268000,,Mobile Telephones,St Scene & Leis Sals&Overheads,D01AGDG0045013,
http://statistics.data.gov.uk/id/local-authority/29UP,Tonbridge & Malling Borough Council,5/18/2022,0012008332/16,12008332, 6.00,O2 UK Ltd,01268000,,Mobile Telephones,St Scene & Leis Sals&Overheads,D01AGDG0145013,
http://statistics.data.gov.uk/id/local-authority/29UP,Tonbridge & Malling Borough Council,5/18/2022,0012008332/17,12008332, 9.00,O2 UK Ltd,01268000,,Mobile Telephones,St Scene & Leis Sals&Overheads,D01AGDG0445013,
http://statistics.data.gov.uk/id/local-authority/29UP,Tonbridge & Malling Borough Council,5/18/2022,0012008332/18,12008332, 33.50,O2 UK Ltd,01268000,,Mobile Telephones,St Scene & Leis Sals&Overheads,D01AGDG2045013,
http://statistics.data.gov.uk/id/local-authority/29UP,Tonbridge & Malling Borough Council,5/18/2022,0012008332/19,12008332, 9.00,O2 UK Ltd,01268000,,Mobile Telephones,Planning Sals&Overheads,D01AJDJ0045013,
http://statistics.data.gov.uk/id/local-authority/29UP,Tonbridge & Malling Borough Council,5/18/2022,0012008332/2,12008332, 6.00,O2 UK Ltd,01268000,,Mobile Telephones,Admin & Prop Sals&Overheads,D01AADA0045013,
http://statistics.data.gov.uk/id/local-authority/29UP,Tonbridge & Malling Borough Council,5/18/2022,0012008332/20,12008332, 12.10,O2 UK Ltd,01268000,,Mobile Telephones,Planning Sals&Overheads,D01AJDJ0245013,
http://statistics.data.gov.uk/id/local-authority/29UP,Tonbridge & Malling Borough Council,5/18/2022,0012008332/21,12008332, 6.00,O2 UK Ltd,01268000,,Mobile Telephones,Legal Sals&Overheads,D01ARDR0045013,
http://statistics.data.gov.uk/id/local-authority/29UP,Tonbridge & Malling Borough Council,5/18/2022,0012008332/22,12008332, 12.00,O2 UK Ltd,01268000,,Mobile Telephones,Legal Sals&Overheads,D01ARDR0445013,
http://statistics.data.gov.uk/id/local-authority/29UP,Tonbridge & Malling Borough Council,5/18/2022,0012008332/23,12008332, 3.00,O2 UK Ltd,01268000,,Mobile Telephones,Legal Sals&Overheads,D01ARDR0745013,
http://statistics.data.gov.uk/id/local-authority/29UP,Tonbridge & Malling Borough Council,5/18/2022,0012008332/24,12008332, 3.00,O2 UK Ltd,01268000,,Mobile Telephones,Env Hlth & Hsg Sals&Overheads,D01AVDV0045013,
http://statistics.data.gov.uk/id/local-authority/29UP,Tonbridge & Malling Borough Council,5/18/2022,0012008332/25,12008332, 9.00,O2 UK Ltd,01268000,,Mobile Telephones,Env Hlth & Hsg Sals&Overheads,D01AVDV0145013,
http://statistics.data.gov.uk/id/local-authority/29UP,Tonbridge & Malling Borough Council,5/18/2022,0012008332/26,12008332, 6.00,O2 UK Ltd,01268000,,Mobile Telephones,Env Hlth & Hsg Sals&Overheads,D01AVDV0345013,
http://statistics.data.gov.uk/id/local-authority/29UP,Tonbridge & Malling Borough Council,5/18/2022,0012008332/27,12008332, 3.00,O2 UK Ltd,01268000,,Mobile Telephones,Env Hlth & Hsg Sals&Overheads,D01AVDV0745013,
http://statistics.data.gov.uk/id/local-authority/29UP,Tonbridge & Malling Borough Council,5/18/2022,0012008332/28,12008332, 6.00,O2 UK Ltd,01268000,,Mobile Telephones,Env Hlth & Hsg Sals&Overheads,D01AVDV0945013,
http://statistics.data.gov.uk/id/local-authority/29UP,Tonbridge & Malling Borough Council,5/18/2022,0012008332/29,12008332, 11.80,O2 UK Ltd,01268000,,Mobile Telephones,Customer Services,D23CS000045013,
http://statistics.data.gov.uk/id/local-authority/29UP,Tonbridge & Malling Borough Council,5/18/2022,0012008332/3,12008332, 3.00,O2 UK Ltd,01268000,,Mobile Telephones,Admin & Prop Sals&Overheads,D01AADA1045013,
http://statistics.data.gov.uk/id/local-authority/29UP,Tonbridge & Malling Borough Council,5/18/2022,0012008332/30,12008332, 3.00,O2 UK Ltd,01268000,,Mobile Telephones,Tonbridge Gateway,D23TG000045013,
http://statistics.data.gov.uk/id/local-authority/29UP,Tonbridge & Malling Borough Council,5/18/2022,0012008332/31,12008332, 627.00,O2 UK Ltd,01268000,,Leased Lines & Modems,Information Technology,D27KD000045011,
http://statistics.data.gov.uk/id/local-authority/29UP,Tonbridge & Malling Borough Council,5/18/2022,0012008332/32,12008332, 3.00,O2 UK Ltd,01268000,,Mobile Telephones,Mayoral & Other Member Support,D29LX000045013,
http://statistics.data.gov.uk/id/local-authority/29UP,Tonbridge & Malling Borough Council,5/18/2022,0012008332/33,12008332, 3.00,O2 UK Ltd,01268000,,Emergency Out of Hours Recharg,Refuse Collection,H20SA000045030,
http://statistics.data.gov.uk/id/local-authority/29UP,Tonbridge & Malling Borough Council,5/18/2022,0012008332/34,12008332, 3.00,O2 UK Ltd,01268000,,Emergency Out of Hours Recharg,Street Scene,H23SD000045030,
http://statistics.data.gov.uk/id/local-authority/29UP,Tonbridge & Malling Borough Council,5/18/2022,0012008332/4,12008332, 9.00,O2 UK Ltd,01268000,,Mobile Telephones,Admin & Prop Sals&Overheads,D01AADA1245013,
http://statistics.data.gov.uk/id/local-authority/29UP,Tonbridge & Malling Borough Council,5/18/2022,0012008332/5,12008332, 3.00,O2 UK Ltd,01268000,,Mobile Telephones,Chief Exec Sals&Overheads,D01ACDC0045013,
http://statistics.data.gov.uk/id/local-authority/29UP,Tonbridge & Malling Borough Council,5/18/2022,0012008332/6,12008332, 3.00,O2 UK Ltd,01268000,,Mobile Telephones,Chief Exec Sals&Overheads,D01ACDC0145013,
http://statistics.data.gov.uk/id/local-authority/29UP,Tonbridge & Malling Borough Council,5/18/2022,0012008332/7,12008332, 3.00,O2 UK Ltd,01268000,,Mobile Telephones,Chief Exec Sals&Overheads,D01ACDC0245013,
http://statistics.data.gov.uk/id/local-authority/29UP,Tonbridge & Malling Borough Council,5/18/2022,0012008332/8,12008332, 3.00,O2 UK Ltd,01268000,,Mobile Telephones,Technical Sals&Overheads,D01AEDE0045013,
http://statistics.data.gov.uk/id/local-authority/29UP,Tonbridge & Malling Borough Council,5/18/2022,0012008332/9,12008332, 6.00,O2 UK Ltd,01268000,,Mobile Telephones,Technical Sals&Overheads,D01AEDE0145013,
http://statistics.data.gov.uk/id/local-authority/29UP,Tonbridge & Malling Borough Council,5/18/2022,0012008333/1,12008333, 5.82,Amazon EU SARL,01738400,,Purchases,Information Technology,D27KD000040101,410032146
http://statistics.data.gov.uk/id/local-authority/29UP,Tonbridge & Malling Borough Council,5/18/2022,0012008333/2,12008333, 4.16,Amazon EU SARL,01738400,,Delivery Expenses,Information Technology,D27KD000044069,410032146
http://statistics.data.gov.uk/id/local-authority/29UP,Tonbridge & Malling Borough Council,5/18/2022,0012008334/1,12008334, 589.99,CCS Media Ltd,00018000,,Initial Furniture & Equipment,Capital Renewals IT,P06FBFB1009906,410032185
http://statistics.data.gov.uk/id/local-authority/29UP,Tonbridge & Malling Borough Council,5/18/2022,0012008335/1,12008335, 49.00,Get It Repaired,01631300,287357752,Maintenance - Micros,Information Technology,D27KD000040140,410032189
http://statistics.data.gov.uk/id/local-authority/29UP,Tonbridge & Malling Borough Council,5/18/2022,0012008336/1,12008336, 186.04,Kingsfield Computer Products Ltd,00942800,,Purchases,Information Technology,D27KD000040101,410032187
http://statistics.data.gov.uk/id/local-authority/29UP,Tonbridge & Malling Borough Council,5/18/2022,0012008336/2,12008336, 7.95,Kingsfield Computer Products Ltd,00942800,,Delivery Expenses,Information Technology,D27KD000044069,410032187
http://statistics.data.gov.uk/id/local-authority/29UP,Tonbridge & Malling Borough Council,5/18/2022,0012008337/1,12008337, 105.51,KCS,00054200,,Leasing Charges,Multi Function Devices,D22GB000044038,
http://statistics.data.gov.uk/id/local-authority/29UP,Tonbridge & Malling Borough Council,5/18/2022,0012008338/1,12008338, 130.63,KCS,00054200,,Leasing Charges,Multi Function Devices,D22GB000044038,
http://statistics.data.gov.uk/id/local-authority/29UP,Tonbridge & Malling Borough Council,5/18/2022,0012008339/1,12008339, 130.63,KCS,00054200,,Leasing Charges,Multi Function Devices,D22GB000044038,
http://statistics.data.gov.uk/id/local-authority/29UP,Tonbridge & Malling Borough Council,5/18/2022,0012008340/1,12008340, 122.61,KCS,00054200,,Leasing Charges,Multi Function Devices,D22GB000044038,
http://statistics.data.gov.uk/id/local-authority/29UP,Tonbridge & Malling Borough Council,5/18/2022,0012008341/1,12008341, 122.61,KCS,00054200,,Leasing Charges,Multi Function Devices,D22GB000044038,
http://statistics.data.gov.uk/id/local-authority/29UP,Tonbridge & Malling Borough Council,5/18/2022,0012008342/1,12008342, 122.61,KCS,00054200,,Leasing Charges,Multi Function Devices,D22GB000044038,
http://statistics.data.gov.uk/id/local-authority/29UP,Tonbridge & Malling Borough Council,5/18/2022,0012008343/1,12008343, 122.61,KCS,00054200,,Leasing Charges,Multi Function Devices,D22GB000044038,
http://statistics.data.gov.uk/id/local-authority/29UP,Tonbridge & Malling Borough Council,5/18/2022,0012008344/1,12008344, 130.63,KCS,00054200,,Leasing Charges,Multi Function Devices,D22GB000044038,
http://statistics.data.gov.uk/id/local-authority/29UP,Tonbridge & Malling Borough Council,5/18/2022,0012008345/1,12008345, 82.58,KCS,00054200,,Leasing Charges,Multi Function Devices,D22GB000044038,
http://statistics.data.gov.uk/id/local-authority/29UP,Tonbridge & Malling Borough Council,5/18/2022,0012008346/1,12008346, 91.95,KCS,00054200,,Leasing Charges,Multi Function Devices,D22GB000044038,
http://statistics.data.gov.uk/id/local-authority/29UP,Tonbridge & Malling Borough Council,5/18/2022,0012008347/1,12008347, 122.61,KCS,00054200,,Leasing Charges,Multi Function Devices,D22GB000044038,
http://statistics.data.gov.uk/id/local-authority/29UP,Tonbridge & Malling Borough Council,5/18/2022,0012008348/1,12008348, 130.63,KCS,00054200,,Leasing Charges,Multi Function Devices,D22GB000044038,
http://statistics.data.gov.uk/id/local-authority/29UP,Tonbridge & Malling Borough Council,5/18/2022,0012008349/1,12008349, 16.76,KCS,00054200,,Copy Charges,Multi Function Devices,D22GB000040125,
http://statistics.data.gov.uk/id/local-authority/29UP,Tonbridge & Malling Borough Council,5/18/2022,0012008350/1,12008350, 106.11,KCS,00054200,,Copy Charges,Multi Function Devices,D22GB000040125,
http://statistics.data.gov.uk/id/local-authority/29UP,Tonbridge & Malling Borough Council,5/18/2022,0012008351/1,12008351, 21.00,KCS,00054200,,Copy Charges,Multi Function Devices,D22GB000040125,
http://statistics.data.gov.uk/id/local-authority/29UP,Tonbridge & Malling Borough Council,5/18/2022,0012008352/1,12008352, 7.47,KCS,00054200,,Copy Charges,Multi Function Devices,D22GB000040125,
http://statistics.data.gov.uk/id/local-authority/29UP,Tonbridge & Malling Borough Council,5/18/2022,0012008353/1,12008353, 10.57,KCS,00054200,,Copy Charges,Multi Function Devices,D22GB000040125,
http://statistics.data.gov.uk/id/local-authority/29UP,Tonbridge & Malling Borough Council,5/18/2022,0012008354/1,12008354, 0.20,KCS,00054200,,Copy Charges,Multi Function Devices,D22GB000040125,
http://statistics.data.gov.uk/id/local-authority/29UP,Tonbridge & Malling Borough Council,5/18/2022,0012008355/1,12008355, 146.18,KCS,00054200,,Copy Charges,Multi Function Devices,D22GB000040125,
http://statistics.data.gov.uk/id/local-authority/29UP,Tonbridge & Malling Borough Council,5/18/2022,0012008356/1,12008356, 2.74,KCS,00054200,,Copy Charges,Multi Function Devices,D22GB000040125,
http://statistics.data.gov.uk/id/local-authority/29UP,Tonbridge & Malling Borough Council,5/18/2022,0012008357/1,12008357, 5.59,KCS,00054200,,Copy Charges,Multi Function Devices,D22GB000040125,
http://statistics.data.gov.uk/id/local-authority/29UP,Tonbridge & Malling Borough Council,5/18/2022,0012008358/1,12008358, 132.85,KCS,00054200,,Copy Charges,Multi Function Devices,D22GB000040125,
http://statistics.data.gov.uk/id/local-authority/29UP,Tonbridge & Malling Borough Council,5/18/2022,0012008359/1,12008359, 29.43,KCS,00054200,,Leasing Charges,Multi Function Devices,D22GB000044038,
http://statistics.data.gov.uk/id/local-authority/29UP,Tonbridge & Malling Borough Council,5/18/2022,0021037880/1,21037880, 5340.25,Tonbridge & Malling Leisure Trust,01469100,,Payment re Prev Yrs Cred Acc,Sundry Creditors SSLTS,J80TL000001101,
http://statistics.data.gov.uk/id/local-authority/29UP,Tonbridge & Malling Borough Council,5/18/2022,0021037928/1,21037928, 527.40,G.L. & R.G. Bourne,00737500,,Gates / Security,Haysden Country Park,B22LC000044017,210056722
http://statistics.data.gov.uk/id/local-authority/29UP,Tonbridge & Malling Borough Council,5/18/2022,0021037929/1,21037929, 40.00,G.L. & R.G. Bourne,00737500,,Maintenance of Grounds,Haysden Country Park,B22LC000020402,210056723
http://statistics.data.gov.uk/id/local-authority/29UP,Tonbridge & Malling Borough Council,5/18/2022,0021037930/1,21037930, 72.30,G.L. & R.G. Bourne,00737500,,Gates / Security,Haysden Country Park,B22LC000044017,210056722
http://statistics.data.gov.uk/id/local-authority/29UP,Tonbridge & Malling Borough Council,5/18/2022,0021037931/3,21037931, 94.05,B&Q/Screwfix Direct(TradeUKAccount),00141300,,Maintenance of Grounds,Haysden Country Park,B22LC000020402,
http://statistics.data.gov.uk/id/local-authority/29UP,Tonbridge & Malling Borough Council,5/18/2022,0021037932/1,21037932, 140.00,GI Carpets Ltd,00953500,,Initial Furniture & Equipment,Capital Renewals Leisure,P05KGBC0409906,210056585
http://statistics.data.gov.uk/id/local-authority/29UP,Tonbridge & Malling Borough Council,5/18/2022,0021037933/1,21037933, 2630.00,GI Carpets Ltd,00953500,,Initial Furniture & Equipment,Capital Renewals Leisure,P05KGBC0409906,210056585
http://statistics.data.gov.uk/id/local-authority/29UP,Tonbridge & Malling Borough Council,5/18/2022,0021037934/1,21037934, 26.99,KCS,00054200,,Purchases,Open Spaces & Amenity Areas,B22LE000040101,210056769
http://statistics.data.gov.uk/id/local-authority/29UP,Tonbridge & Malling Borough Council,5/18/2022,0021037935/1,21037935, 384.00,Landscape Services Ltd,00057600,,Tree Planting Schemes,Countryside/Woodland Mgt,B22LH000020405,210056753
http://statistics.data.gov.uk/id/local-authority/29UP,Tonbridge & Malling Borough Council,5/18/2022,0021037936/1,21037936, 195.00,Flash Mobile Welding Services Ltd,01189200,,Maintenance of Grounds,Tonbridge Castle Grounds,B22LB000020402,210056770
http://statistics.data.gov.uk/id/local-authority/29UP,Tonbridge & Malling Borough Council,5/18/2022,0021037937/1,21037937, 150.00,Flash Mobile Welding Services Ltd,01189200,,Maintenance of Grounds,Sports Grounds,B13ET000020402,210056773
http://statistics.data.gov.uk/id/local-authority/29UP,Tonbridge & Malling Borough Council,5/18/2022,0021037938/1,21037938, 500.00,Medway Valley Countryside PartnershipKCC,00780000,,Maintenance of Grounds,Countryside/Woodland Mgt,B22LGB40120402,210056764
http://statistics.data.gov.uk/id/local-authority/29UP,Tonbridge & Malling Borough Council,5/18/2022,0021037939/1,21037939, 76.36,B&Q/Screwfix Direct(TradeUKAccount),00141300,,Maintenance of Grounds,Haysden Country Park,B22LC000020402,
http://statistics.data.gov.uk/id/local-authority/29UP,Tonbridge & Malling Borough Council,5/18/2022,0021037939/2,21037939, 43.87,B&Q/Screwfix Direct(TradeUKAccount),00141300,,Maintenance of Grounds,Haysden Country Park,B22LC000020402,
http://statistics.data.gov.uk/id/local-authority/29UP,Tonbridge & Malling Borough Council,5/18/2022,0021037940/1,21037940, 34.25,B&Q/Screwfix Direct(TradeUKAccount),00141300,,Maintenance of Grounds,Haysden Country Park,B22LC000020402,
http://statistics.data.gov.uk/id/local-authority/29UP,Tonbridge & Malling Borough Council,5/18/2022,0021037941/1,21037941, 5000.00,Tonbridge & Malling Leisure Trust,01469100,,Leisure Trust Service Fee,T&M Leisure Trust,B10DA000050101,
http://statistics.data.gov.uk/id/local-authority/29UP,Tonbridge & Malling Borough Council,5/18/2022,0021037942/1,21037942, 360.00,David Hodgkinson Photographer,01068900,,Marketing,Events Development,B41TJZ99944215,210056776
http://statistics.data.gov.uk/id/local-authority/29UP,Tonbridge & Malling Borough Council,5/18/2022,0021037943/1,21037943, 500.00,West Kent Big Band,01848100,,Events Support,Events Development,B41TJ000044041,
http://statistics.data.gov.uk/id/local-authority/29UP,Tonbridge & Malling Borough Council,5/18/2022,0022026622/1,22026622, 1260.00,Lucy and Martin Recycling LTD,01694200,,General Maintenance,Dry Recycling,H34SR000020301,220003233
http://statistics.data.gov.uk/id/local-authority/29UP,Tonbridge & Malling Borough Council,5/18/2022,0022026623/3,22026623, 1479.20,Lucy and Martin Recycling LTD,01694200,,Contract Payments,Dry Recycling,H34SR000054001,
http://statistics.data.gov.uk/id/local-authority/29UP,Tonbridge & Malling Borough Council,5/18/2022,0022026624/3,22026624, 1777.13,Ward Security LTD,01490000,,Dog Warden,Street Scene,H23SD000044100,
http://statistics.data.gov.uk/id/local-authority/29UP,Tonbridge & Malling Borough Council,5/18/2022,0022026625/3,22026625, 2109.75,Ward Security LTD,01490000,,Payment re Prev Yrs Cred Acc,Sundry Creditors SSLTS,J80TL000001101,
http://statistics.data.gov.uk/id/local-authority/29UP,Tonbridge & Malling Borough Council,5/18/2022,0022026625/4,22026625, 930.00,Ward Security LTD,01490000,,Payment re Prev Yrs Cred Acc,Sundry Creditors SSLTS,J80TL000001101,
http://statistics.data.gov.uk/id/local-authority/29UP,Tonbridge & Malling Borough Council,5/18/2022,0022026626/3,22026626, 218.60,Countrystyle Group,00835900,781981681,Plastic Recycling,Dry Recycling,H34SR000054019,
http://statistics.data.gov.uk/id/local-authority/29UP,Tonbridge & Malling Borough Council,5/18/2022,0022026627/1,22026627, 329.47,Peabody South East LTD,01680900,,Other Expenses,Disabled Facilities Grant Mand,P03AC000009908,
http://statistics.data.gov.uk/id/local-authority/29UP,Tonbridge & Malling Borough Council,5/18/2022,0022026628/1,22026628, 5268.78,Elite Complete Build LTD,01625900,,Other Expenses,Disabled Facilities Grant Mand,P03AC000009908,
http://statistics.data.gov.uk/id/local-authority/29UP,Tonbridge & Malling Borough Council,5/18/2022,0022026629/1,22026629, 936.65,Peabody South East LTD,01680900,,Other Expenses,Disabled Facilities Grant Mand,P03AC000009908,
http://statistics.data.gov.uk/id/local-authority/29UP,Tonbridge & Malling Borough Council,5/18/2022,0022026630/1,22026630, 5977.00,Ascendit Lifts Ltd,00446600,,Other Expenses,Disabled Facilities Grant Mand,P03AC000009908,
http://statistics.data.gov.uk/id/local-authority/29UP,Tonbridge & Malling Borough Council,5/18/2022,0022026631/1,22026631, 9483.27,Accessible Solutions LTD,01539700,,Other Expenses,Disabled Facilities Grant Mand,P03AC000009908,
http://statistics.data.gov.uk/id/local-authority/29UP,Tonbridge & Malling Borough Council,5/18/2022,0022026632/1,22026632, 1365.59,Town & Country Housing Group,01385400,,Other Expenses,Disabled Facilities Grant Mand,P03AC000009908,
http://statistics.data.gov.uk/id/local-authority/29UP,Tonbridge & Malling Borough Council,5/18/2022,0022026633/1,22026633, 5900.00,Dolphin Stairlifts,00698900,,Other Expenses,Disabled Facilities Grant Mand,P03AC000009908,
http://statistics.data.gov.uk/id/local-authority/29UP,Tonbridge & Malling Borough Council,5/18/2022,0022026634/1,22026634, 3735.29,Ward Security LTD,01490000,,Dog Warden,Street Scene,H23SD000044100,
http://statistics.data.gov.uk/id/local-authority/29UP,Tonbridge & Malling Borough Council,5/18/2022,0022026635/1,22026635, 2104.00,Saving Energy Ltd,01848400,,Other Expenses,Housing Assistance,P03AD000009908,
http://statistics.data.gov.uk/id/local-authority/29UP,Tonbridge & Malling Borough Council,5/18/2022,0022026636/1,22026636, 6217.83,Clarion Housing,01078200,,Contribution from Other Bodies,Homelessness,C01AACV1995001,
http://statistics.data.gov.uk/id/local-authority/29UP,Tonbridge & Malling Borough Council,5/18/2022,0022026637/1,22026637, 14.32,Bulb Energy Ltd,01799000,214948301,Electricity,Homelessness,C01AA000021002,
http://statistics.data.gov.uk/id/local-authority/29UP,Tonbridge & Malling Borough Council,5/18/2022,0022026637/2,22026637, 48.18,Bulb Energy Ltd,01799000,214948301,Electricity,Homelessness,C01AA000021002,
http://statistics.data.gov.uk/id/local-authority/29UP,Tonbridge & Malling Borough Council,5/18/2022,0022026638/1,22026638, 1089.00,G2 Recruitment Solutions,01786000,,Temporary Staff,Env Hlth & Hsg Sals&Overheads,D01AVDV0711300,
http://statistics.data.gov.uk/id/local-authority/29UP,Tonbridge & Malling Borough Council,5/18/2022,0022026639/1,22026639, 1221.00,G2 Recruitment Solutions,01786000,,Temporary Staff,Env Hlth & Hsg Sals&Overheads,D01AVDV0711300,
http://statistics.data.gov.uk/id/local-authority/29UP,Tonbridge & Malling Borough Council,5/18/2022,0022026640/1,22026640, 738.76,G2 Recruitment Solutions,01786000,,Temporary Staff,Env Hlth & Hsg Sals&Overheads,D01AVDV0711300,
http://statistics.data.gov.uk/id/local-authority/29UP,Tonbridge & Malling Borough Council,5/18/2022,0022026641/3,22026641, 825.00,G2 Recruitment Solutions,01786000,,Temporary Staff,Env Hlth & Hsg Sals&Overheads,D01AVDV0711300,
http://statistics.data.gov.uk/id/local-authority/29UP,Tonbridge & Malling Borough Council,5/18/2022,0022026642/3,22026642, 1007.40,G2 Recruitment Solutions,01786000,,Temporary Staff,Env Hlth & Hsg Sals&Overheads,D01AVDV0711300,
http://statistics.data.gov.uk/id/local-authority/29UP,Tonbridge & Malling Borough Council,5/18/2022,0022026644/3,22026644, 1225.43,Vivid Resourcing,01773700,,Temporary Staff,Env Hlth & Hsg Sals&Overheads,D01AVDV0711300,
http://statistics.data.gov.uk/id/local-authority/29UP,Tonbridge & Malling Borough Council,5/18/2022,0022026645/3,22026645, 1030.13,Vivid Resourcing,01773700,,Temporary Staff,Env Hlth & Hsg Sals&Overheads,D01AVDV0711300,
http://statistics.data.gov.uk/id/local-authority/29UP,Tonbridge & Malling Borough Council,5/18/2022,0022026646/1,22026646, 845.88,Vivid Resourcing,01773700,,Temporary Staff,Env Hlth & Hsg Sals&Overheads,D01AVDV0711300,
http://statistics.data.gov.uk/id/local-authority/29UP,Tonbridge & Malling Borough Council,5/18/2022,0031018658/1,31018658, 695.00,Archway Highway Services Ltd,01398000,,Premises Repairs & Maintenance,Parking Off-Street,E10HA000020601,310042823
http://statistics.data.gov.uk/id/local-authority/29UP,Tonbridge & Malling Borough Council,5/18/2022,0031018659/1,31018659, 6892.50,Duke Contractors Ltd,00082900,,Contract Payments,TRSG Riverside Rivetment,P05DD000009904,210056640
http://statistics.data.gov.uk/id/local-authority/29UP,Tonbridge & Malling Borough Council,5/18/2022,0031018659/2,31018659, 34388.50,Duke Contractors Ltd,00082900,,Contract Payments,TRSG Riverside Rivetment,P05DD000009904,210056640
http://statistics.data.gov.uk/id/local-authority/29UP,Tonbridge & Malling Borough Council,5/18/2022,0031018659/3,31018659, 13938.00,Duke Contractors Ltd,00082900,,Contract Payments,TRSG Riverside Rivetment,P05DD000009904,210056640
http://statistics.data.gov.uk/id/local-authority/29UP,Tonbridge & Malling Borough Council,5/18/2022,0031018660/1,31018660, 1260.00,Sevenoaks District Council,00089300,,Out of Hours Service,Civil Contingencies,D33NA000045025,
http://statistics.data.gov.uk/id/local-authority/29UP,Tonbridge & Malling Borough Council,5/18/2022,0032009544/3,32009544, 2479.00,G2 Recruitment Solutions,01786000,,Temporary Staff,Planning Sals&Overheads,D01AJDJ0111300,
http://statistics.data.gov.uk/id/local-authority/29UP,Tonbridge & Malling Borough Council,5/18/2022,0032009545/3,32009545, 2590.00,G2 Recruitment Solutions,01786000,,Temporary Staff,Planning Sals&Overheads,D01AJDJ0111300,
http://statistics.data.gov.uk/id/local-authority/29UP,Tonbridge & Malling Borough Council,5/18/2022,0032009545/4,32009545, 2380.00,G2 Recruitment Solutions,01786000,,Temporary Staff,Planning Sals&Overheads,D01AJDJ0111300,
http://statistics.data.gov.uk/id/local-authority/29UP,Tonbridge & Malling Borough Council,5/18/2022,0032009546/3,32009546, 2639.07,G2 Recruitment Solutions,01786000,,Temporary Staff,Planning Sals&Overheads,D01AJDJ0111300,
http://statistics.data.gov.uk/id/local-authority/29UP,Tonbridge & Malling Borough Council,5/18/2022,0032009547/3,32009547, 2244.50,G2 Recruitment Solutions,01786000,,Temporary Staff,Planning Sals&Overheads,D01AJDJ0111300,
http://statistics.data.gov.uk/id/local-authority/29UP,Tonbridge & Malling Borough Council,5/18/2022,0032009548/3,32009548, 825.00,Seymour & Saunders Electrical Ltd,01500300,467735604,Competent Persons Schemes,Building Control,A01AD000048116,
http://statistics.data.gov.uk/id/local-authority/29UP,Tonbridge & Malling Borough Council,5/18/2022,0032009549/3,32009549, 1426.00,Vivid Resourcing,01773700,,Temporary Staff,Planning Sals&Overheads,D01AJDJ0111300,
http://statistics.data.gov.uk/id/local-authority/29UP,Tonbridge & Malling Borough Council,5/18/2022,0032009550/3,32009550, 1792.00,Vivid Resourcing,01773700,,Temporary Staff,Planning Sals&Overheads,D01AJDJ0111300,
http://statistics.data.gov.uk/id/local-authority/29UP,Tonbridge & Malling Borough Council,5/18/2022,0032009550/4,32009550, 1736.00,Vivid Resourcing,01773700,,Temporary Staff,Planning Sals&Overheads,D01AJDJ0111300,
http://statistics.data.gov.uk/id/local-authority/29UP,Tonbridge & Malling Borough Council,5/18/2022,0032009551/3,32009551, 1537.25,The Oyster Partnership,01196400,,Temporary Staff,Planning Sals&Overheads,D01AJDJ0111300,
http://statistics.data.gov.uk/id/local-authority/29UP,Tonbridge & Malling Borough Council,5/18/2022,0032009552/3,32009552, 1356.20,The Oyster Partnership,01196400,,Temporary Staff,Planning Sals&Overheads,D01AJDJ0111300,
http://statistics.data.gov.uk/id/local-authority/29UP,Tonbridge & Malling Borough Council,5/18/2022,0032009553/3,32009553, 1012.50,Carrington West Limited,01844500,,Temporary Staff,Planning Sals&Overheads,D01AJDJ0111300,
http://statistics.data.gov.uk/id/local-authority/29UP,Tonbridge & Malling Borough Council,5/18/2022,0032009554/1,32009554, 1000.00,DHA Planning Ltd,01553900,,Development of Local Plan,Development of Local Plan,A01AE000044023,
http://statistics.data.gov.uk/id/local-authority/29UP,Tonbridge & Malling Borough Council,5/18/2022,0032009555/1,32009555, 300.00,High Weald AONB Unit,01824300,,AONB Management,Planning Policy,A01AF000044163,320003414
http://statistics.data.gov.uk/id/local-authority/29UP,Tonbridge & Malling Borough Council,5/18/2022,0032009556/1,32009556, 18624.00,Mott MacDonald,01661000,,Professional Fees,Planning Policy,A01AF000044001,320003357
http://statistics.data.gov.uk/id/local-authority/29UP,Tonbridge & Malling Borough Council,5/18/2022,0032009557/1,32009557, 4040.00,Quality Bailiffs,01835600,,Professional Fees,Development Management,A01ABENFO44001,
http://statistics.data.gov.uk/id/local-authority/29UP,Tonbridge & Malling Borough Council,5/18/2022,0032009558/1,32009558, 7618.75,Urban Intelligence Ltd,01816600,,Development of Local Plan,Development of Local Plan,A01AE000044023,320003412
http://statistics.data.gov.uk/id/local-authority/29UP,Tonbridge & Malling Borough Council,5/18/2022,0032009559/1,32009559, 278.46,KM Media Group Ltd,00053900,,Advertising General,Development Management,A01ABZ99944216,320003407
http://statistics.data.gov.uk/id/local-authority/29UP,Tonbridge & Malling Borough Council,5/18/2022,0041034301/1,41034301, 28450.21,Cushman & Wakefield,01772600,,Payment re Prev Yrs Cred Acc,Sundry Creditors SSLTS,J80TL000001101,
http://statistics.data.gov.uk/id/local-authority/29UP,Tonbridge & Malling Borough Council,5/18/2022,0041034302/1,41034302, 200.00,Airey Consultancy Services Ltd,01760800,,Consultancy Fees,Local Revenue & NNDR Collect,D41QACV1944011,
http://statistics.data.gov.uk/id/local-authority/29UP,Tonbridge & Malling Borough Council,5/18/2022,0041034302/2,41034302, 450.00,Airey Consultancy Services Ltd,01760800,,Consultancy Fees,Local Revenue & NNDR Collect,D41QACV1944011,
http://statistics.data.gov.uk/id/local-authority/29UP,Tonbridge & Malling Borough Council,5/18/2022,0041034302/3,41034302, 550.00,Airey Consultancy Services Ltd,01760800,,Consultancy Fees,Local Revenue & NNDR Collect,D41QACV1944011,
http://statistics.data.gov.uk/id/local-authority/29UP,Tonbridge & Malling Borough Council,5/18/2022,0041034303/1,41034303, 399.84,KH Recruitment Ltd,01738900,,Temporary Staff,Finance Sals&Overheads,D01AFDF1111300,
http://statistics.data.gov.uk/id/local-authority/29UP,Tonbridge & Malling Borough Council,5/18/2022,0041034304/1,41034304, 80.00,WorldPay Ltd,01402000,991280207,Credit Card Commission,Banking Arrangements,D43QK000044082,
http://statistics.data.gov.uk/id/local-authority/29UP,Tonbridge & Malling Borough Council,5/18/2022,0041034304/2,41034304, 52.72,WorldPay Ltd,01402000,991280207,Credit Card Commission,Banking Arrangements,D43QK000044082,
http://statistics.data.gov.uk/id/local-authority/29UP,Tonbridge & Malling Borough Council,5/18/2022,0041034304/3,41034304, 0.56,WorldPay Ltd,01402000,991280207,Credit Card Commission,Banking Arrangements,D43QK000044082,
http://statistics.data.gov.uk/id/local-authority/29UP,Tonbridge & Malling Borough Council,5/18/2022,0041034305/1,41034305, 80.00,WorldPay Ltd,01402000,991280207,Credit Card Commission,Banking Arrangements,D43QK000044082,
http://statistics.data.gov.uk/id/local-authority/29UP,Tonbridge & Malling Borough Council,5/18/2022,0041034305/2,41034305, 65.84,WorldPay Ltd,01402000,991280207,Credit Card Commission,Banking Arrangements,D43QK000044082,
http://statistics.data.gov.uk/id/local-authority/29UP,Tonbridge & Malling Borough Council,5/18/2022,0041034305/3,41034305, 0.88,WorldPay Ltd,01402000,991280207,Credit Card Commission,Banking Arrangements,D43QK000044082,
http://statistics.data.gov.uk/id/local-authority/29UP,Tonbridge & Malling Borough Council,5/18/2022,0041034306/1,41034306, 80.00,WorldPay Ltd,01402000,991280207,Credit Card Commission,Banking Arrangements,D43QK000044082,
http://statistics.data.gov.uk/id/local-authority/29UP,Tonbridge & Malling Borough Council,5/18/2022,0041034306/2,41034306, 147.04,WorldPay Ltd,01402000,991280207,Credit Card Commission,Banking Arrangements,D43QK000044082,
http://statistics.data.gov.uk/id/local-authority/29UP,Tonbridge & Malling Borough Council,5/18/2022,0041034314/1,41034314, 1029.71,Morgan Hunt UK Ltd,01086900,,Temporary Staff,Finance Sals&Overheads,D01AFDF1111300,
http://statistics.data.gov.uk/id/local-authority/29UP,Tonbridge & Malling Borough Council,5/18/2022,0041034315/1,41034315, 971.25,Morgan Hunt UK Ltd,01086900,,Temporary Staff,Finance Sals&Overheads,D01AFDF1111300,
http://statistics.data.gov.uk/id/local-authority/29UP,Tonbridge & Malling Borough Council,5/18/2022,0041034316/1,41034316, 1739.45,The Oyster Partnership,01196400,,Temporary Staff,Finance Sals&Overheads,D01AFDF1111300,
http://statistics.data.gov.uk/id/local-authority/29UP,Tonbridge & Malling Borough Council,5/18/2022,0041034317/1,41034317, 2293.72,Rundle & Co Ltd,00087200,,Bailiffs Commission,Local Revenue & NNDR Collect,D41QA000044075,
http://statistics.data.gov.uk/id/local-authority/29UP,Tonbridge & Malling Borough Council,5/18/2022,0041034318/1,41034318, 42.03,Rundle & Co Ltd,00087200,,Bailiffs Commission,Local Revenue & NNDR Collect,D41QA000044075,
http://statistics.data.gov.uk/id/local-authority/29UP,Tonbridge & Malling Borough Council,5/18/2022,0041034319/1,41034319, 4445.50,TransUnion International Limited,01493000,,Other Expenses,Local Revenue & NNDR Collect,D41QA000048010,
http://statistics.data.gov.uk/id/local-authority/29UP,Tonbridge & Malling Borough Council,5/18/2022,0041034320/1,41034320, 470.70,TransUnion International Limited,01493000,,Other Expenses,Local Revenue & NNDR Collect,D41QA000048010,
http://statistics.data.gov.uk/id/local-authority/29UP,Tonbridge & Malling Borough Council,5/18/2022,0041034321/1,41034321, 4445.50,TransUnion International Limited,01493000,,Other Expenses,Local Revenue & NNDR Collect,D41QA000048010,
http://statistics.data.gov.uk/id/local-authority/29UP,Tonbridge & Malling Borough Council,5/18/2022,0051008697/3,51008697, 133.00,Cantium Business Solutions Ltd,01698600,,Criminal Records Bureau Checks,Recruitment Expenses,D10DA000013180,
http://statistics.data.gov.uk/id/local-authority/29UP,Tonbridge & Malling Borough Council,5/18/2022,0051008697/4,51008697, 45.00,Cantium Business Solutions Ltd,01698600,,Criminal Records Bureau Checks,Recruitment Expenses,D10DA000013180,
http://statistics.data.gov.uk/id/local-authority/29UP,Tonbridge & Malling Borough Council,5/18/2022,0051008698/1,51008698, 370.00,Firebrand Training Ltd,01716800,,Ext Fees/IT Training,Training,D10DCDN0113564,510010576
http://statistics.data.gov.uk/id/local-authority/29UP,Tonbridge & Malling Borough Council,5/18/2022,0051008699/1,51008699, 165.00,St John Ambulance Supplies,01228000,,Ext Fees/Health & Safety,Training,D10DCDG0113566,510010574
http://statistics.data.gov.uk/id/local-authority/29UP,Tonbridge & Malling Borough Council,5/18/2022,0051008700/1,51008700, 6795.00,Learning Nexus Ltd,01129100,,Ext Fees/Prof & Tech,Training,D10DC000013561,510010578
http://statistics.data.gov.uk/id/local-authority/29UP,Tonbridge & Malling Borough Council,5/18/2022,0051008701/1,51008701, 370.00,Firebrand Training Ltd,01716800,,Ext Fees/IT Training,Training,D10DCDN0113564,510010575
http://statistics.data.gov.uk/id/local-authority/29UP,Tonbridge & Malling Borough Council,5/19/2022,0041034324/1,41034324, 2271.00,H.M. Revenue & Customs,00048400,,Levy Payment,Apprenticeship Scheme,D10DE000013700,
http://statistics.data.gov.uk/id/local-authority/29UP,Tonbridge & Malling Borough Council,5/19/2022,0041034326/1,41034326, 100.16,Utax UK Ltd,01658500,642302771,Copy Charges,Multi Function Devices,D22GB000040125,
http://statistics.data.gov.uk/id/local-authority/29UP,Tonbridge & Malling Borough Council,5/23/2022,0041034333/1,41034333, 540.00,CEDR Services Ltd,01848900,,Legal Fees,Legal Sals&Overheads,D01ARDR0044002,
http://statistics.data.gov.uk/id/local-authority/29UP,Tonbridge & Malling Borough Council,5/23/2022,0041034338/1,41034338, 19.95,WorldPay Ltd,01402000,991280207,Credit Card Commission,Banking Arrangements,D43QK000044082,
http://statistics.data.gov.uk/id/local-authority/29UP,Tonbridge & Malling Borough Council,5/24/2022,0041034346/1,41034346, 59.95,Allpay Limited,01816500,,Giro / Swipe Card Charges,Local Revenue & NNDR Collect,D41QA000044083,
http://statistics.data.gov.uk/id/local-authority/29UP,Tonbridge & Malling Borough Council,5/24/2022,0041034347/1,41034347, 85.00,National Westminster Bank Plc,00069400,,Bank Charges,Banking Arrangements,D43QK000044222,
http://statistics.data.gov.uk/id/local-authority/29UP,Tonbridge & Malling Borough Council,5/24/2022,0041034348/1,41034348, 261.95,National Westminster Bank Plc,00069400,,Bank Charges,Banking Arrangements,D43QK000044222,
http://statistics.data.gov.uk/id/local-authority/29UP,Tonbridge & Malling Borough Council,5/25/2022,0011044355/1,11044355, 799.10,Chubb Fire & Security Ltd,00115400,174605362,BRREP Servicing-IntruderAlarm,Grnd Mtce Poult Wood Golf Cent,M15HFP20001939,110069550
http://statistics.data.gov.uk/id/local-authority/29UP,Tonbridge & Malling Borough Council,5/25/2022,0011044356/1,11044356, 1313.98,Chubb Fire & Security Ltd,00115400,174605362,BRREP Servicing-IntruderAlarm,Tonbridge Swimming Pool,M15HBP20001939,110069552
http://statistics.data.gov.uk/id/local-authority/29UP,Tonbridge & Malling Borough Council,5/25/2022,0011044357/1,11044357, 1022.46,Chubb Fire & Security Ltd,00115400,174605362,BRREP Servicing-IntruderAlarm,Leis Man Poult Wood Golf Centr,M15HEP20001939,110069551
http://statistics.data.gov.uk/id/local-authority/29UP,Tonbridge & Malling Borough Council,5/25/2022,0011044358/1,11044358, 356.37,Chillmech Limited,00978700,,BRREP Servicing-Air Condition,Tonbridge Swimming Pool,M15HBP20001935,110069549
http://statistics.data.gov.uk/id/local-authority/29UP,Tonbridge & Malling Borough Council,5/25/2022,0011044359/1,11044359, 188.00,BML Building Services Ltd,01505000,,BRREP General Maintenance,PC - General,M15JAP10001900,110069554
http://statistics.data.gov.uk/id/local-authority/29UP,Tonbridge & Malling Borough Council,5/25/2022,0011044360/1,11044360, 242.76,KM Media Group Ltd,00053900,,Advertising General,Public Accountability,D29LRZ99944216,110069577
http://statistics.data.gov.uk/id/local-authority/29UP,Tonbridge & Malling Borough Council,5/25/2022,0011044361/1,11044361, 248.43,Windsor Print Production Limited,01187500,,Marketing,Tonbridge Castle Gatehouse,B40TG000044215,110069476
http://statistics.data.gov.uk/id/local-authority/29UP,Tonbridge & Malling Borough Council,5/25/2022,0011044361/2,11044361, 500.00,Windsor Print Production Limited,01187500,,Re-opening High Streets,Eco Dev & Reg Gen Bus Support,D52TDCV1948076,110069476
http://statistics.data.gov.uk/id/local-authority/29UP,Tonbridge & Malling Borough Council,5/25/2022,0011044362/1,11044362, 900.00,Kent Drainage Group,01840800,,BRREP General Maintenance,Larkfield Leisure Centre,M15HDP10001900,110069506
http://statistics.data.gov.uk/id/local-authority/29UP,Tonbridge & Malling Borough Council,5/25/2022,0011044362/2,11044362, 650.00,Kent Drainage Group,01840800,,BRREP General Maintenance,Larkfield Leisure Centre,M15HDP10001900,110069506
http://statistics.data.gov.uk/id/local-authority/29UP,Tonbridge & Malling Borough Council,5/25/2022,0011044362/3,11044362, 725.00,Kent Drainage Group,01840800,,BRREP General Maintenance,Larkfield Leisure Centre,M15HDP10001900,110069506
http://statistics.data.gov.uk/id/local-authority/29UP,Tonbridge & Malling Borough Council,5/25/2022,0011044362/4,11044362, 775.00,Kent Drainage Group,01840800,,BRREP General Maintenance,Larkfield Leisure Centre,M15HDP10001900,110069506
http://statistics.data.gov.uk/id/local-authority/29UP,Tonbridge & Malling Borough Council,5/25/2022,0011044363/1,11044363, 3665.00,HOB Mechanical Services Ltd,01706000,,BRREP Fire Damper Testing,Angel Centre,M15HAP30001970,110069582
http://statistics.data.gov.uk/id/local-authority/29UP,Tonbridge & Malling Borough Council,5/25/2022,0011044363/2,11044363, 1845.61,HOB Mechanical Services Ltd,01706000,,BRREP Fire Damper Testing,Larkfield Leisure Centre,M15HDP30001970,110069582
http://statistics.data.gov.uk/id/local-authority/29UP,Tonbridge & Malling Borough Council,5/25/2022,0011044364/1,11044364, 1640.00,G C Industrial Heating Services,00578100,,BRREP Servicing - pool plant,Tonbridge Swimming Pool,M15HBP20001910,110069570
http://statistics.data.gov.uk/id/local-authority/29UP,Tonbridge & Malling Borough Council,5/25/2022,0011044365/1,11044365, 320.00,G C Industrial Heating Services,00578100,,BRREP Servicing - pool plant,Tonbridge Swimming Pool,M15HBP20001910,110069569
http://statistics.data.gov.uk/id/local-authority/29UP,Tonbridge & Malling Borough Council,5/25/2022,0011044366/1,11044366, 316.00,BML Building Services Ltd,01505000,,BRREP Response - General,Larkfield Leisure Centre,M15HDP50001997,110069575
http://statistics.data.gov.uk/id/local-authority/29UP,Tonbridge & Malling Borough Council,5/25/2022,0011044367/1,11044367, 1140.00,G C Industrial Heating Services,00578100,,BRREP Servicing - pool plant,Tonbridge Swimming Pool,M15HBP20001910,110069571
http://statistics.data.gov.uk/id/local-authority/29UP,Tonbridge & Malling Borough Council,5/25/2022,0011044368/1,11044368, 362.00,Hadene Engineering Ltd,00041900,,BRREP Gas Soundness Test,Larkfield Leisure Centre,M15HDP30001994,110069565
http://statistics.data.gov.uk/id/local-authority/29UP,Tonbridge & Malling Borough Council,5/25/2022,0011044369/1,11044369, 352.00,Hadene Engineering Ltd,00041900,,BRREP Gas Soundness Test,Tonbridge Farm Pavillion,M15HGP30001994,110069567
http://statistics.data.gov.uk/id/local-authority/29UP,Tonbridge & Malling Borough Council,5/25/2022,0011044370/1,11044370, 456.00,Hadene Engineering Ltd,00041900,,BRREP Gas Soundness Test,Angel Centre,M15HAP30001994,110069568
http://statistics.data.gov.uk/id/local-authority/29UP,Tonbridge & Malling Borough Council,5/25/2022,0011044371/1,11044371, 545.00,BML Building Services Ltd,01505000,,BRREP Response - General,Tonbridge Castle / CAB,M15KFP50001997,110069573
http://statistics.data.gov.uk/id/local-authority/29UP,Tonbridge & Malling Borough Council,5/25/2022,0011044372/1,11044372, 295.00,Atac Solutions LTD,01558800,,BRREP LeybourneCP SewageDigest,Leybourne Lakes Country Park,M15HLP20001961,110069557
http://statistics.data.gov.uk/id/local-authority/29UP,Tonbridge & Malling Borough Council,5/25/2022,0011044373/1,11044373, 1375.00,Driven to perfection,01541000,,Mayors Transport Allowance,Mayoral & Other Member Support,D29LX000034111,
http://statistics.data.gov.uk/id/local-authority/29UP,Tonbridge & Malling Borough Council,5/25/2022,0011044375/1,11044375, 50.00,The Shrievalty Assoication of Canterbury,01823300,,Hospitality,Mayoral & Other Member Support,D29LX000048003,
http://statistics.data.gov.uk/id/local-authority/29UP,Tonbridge & Malling Borough Council,5/25/2022,0011044376/1,11044376, 1.75,Royal Mail,00086200,,Purchases,Mailsort Stock Account,K37BR000001002,
http://statistics.data.gov.uk/id/local-authority/29UP,Tonbridge & Malling Borough Council,5/25/2022,0011044376/2,11044376, 2.24,Royal Mail,00086200,,Purchases,Mailsort Stock Account,K37BR000001002,
http://statistics.data.gov.uk/id/local-authority/29UP,Tonbridge & Malling Borough Council,5/25/2022,0011044376/3,11044376, 1335.43,Royal Mail,00086200,,Purchases,Mailsort Stock Account,K37BR000001002,
http://statistics.data.gov.uk/id/local-authority/29UP,Tonbridge & Malling Borough Council,5/25/2022,0011044377/1,11044377, 93.40,Biffa Waste Services Ltd,01284500,,Trade Refuse Charges,Cleaning & Security,D21FD000044008,
http://statistics.data.gov.uk/id/local-authority/29UP,Tonbridge & Malling Borough Council,5/25/2022,0011044381/1,11044381, 2186.40,KH Recruitment Ltd,01738900,,Temporary Staff,Personnel Sals&Overheads,D01ABDB0311300,
http://statistics.data.gov.uk/id/local-authority/29UP,Tonbridge & Malling Borough Council,5/25/2022,0011044384/1,11044384, 5000.00,REDACTED PERSONAL DATA,01850100,,Economic Development & Regen,Eco Dev & Reg Gen Bus Support,D52TD000047027,
http://statistics.data.gov.uk/id/local-authority/29UP,Tonbridge & Malling Borough Council,5/25/2022,0011044385/1,11044385, 1217.80,Sellick Partnership Group Limited,01336800,,Temporary Staff,Legal Sals&Overheads,D01ARDR0011300,
http://statistics.data.gov.uk/id/local-authority/29UP,Tonbridge & Malling Borough Council,5/25/2022,0011044386/1,11044386, 500.00,REDACTED PERSONAL DATA,01497600,,Economic Development & Regen,Eco Dev & Reg Gen Bus Support,D52TD000047027,
http://statistics.data.gov.uk/id/local-authority/29UP,Tonbridge & Malling Borough Council,5/25/2022,0011044387/1,11044387, 344.83,Initial Washroom Hygiene,00048300,,Laundry - Roller Towels,Cleaning & Security,D21FD000042003,
http://statistics.data.gov.uk/id/local-authority/29UP,Tonbridge & Malling Borough Council,5/25/2022,0011044388/1,11044388, 217.00,K T Fire Protection Ltd,00057000,,BRREP Servicing - FireAlarmSys,Angel Centre,M15HAP20001937,
http://statistics.data.gov.uk/id/local-authority/29UP,Tonbridge & Malling Borough Council,5/25/2022,0011044389/1,11044389, 182.90,Biffa Waste Services Ltd,01284500,,Trade Refuse Charges,Cleaning & Security,D21FD000044008,
http://statistics.data.gov.uk/id/local-authority/29UP,Tonbridge & Malling Borough Council,5/25/2022,0011044391/1,11044391, 224.45,Scottish Water Business Stream Ltd,01641100,,Sewerage Charges,Buildings,D21FEDD5024003,
http://statistics.data.gov.uk/id/local-authority/29UP,Tonbridge & Malling Borough Council,5/25/2022,0011044392/1,11044392, 1460.00,SJC Door Security Installations,01278600,,BRREP Servicing - access syst,Gibson Building West,M15KBP20001940,110069560
http://statistics.data.gov.uk/id/local-authority/29UP,Tonbridge & Malling Borough Council,5/25/2022,0011044392/2,11044392, 500.00,SJC Door Security Installations,01278600,,BRREP Servicing - access syst,Tonbridge Castle / CAB,M15KFP20001940,110069560
http://statistics.data.gov.uk/id/local-authority/29UP,Tonbridge & Malling Borough Council,5/25/2022,0011044392/3,11044392, 500.00,SJC Door Security Installations,01278600,,BRREP Servicing - access syst,Gibson Building East,M15KGP20001940,110069560
http://statistics.data.gov.uk/id/local-authority/29UP,Tonbridge & Malling Borough Council,5/25/2022,0012008360/1,12008360, 66.10,CCS Media Ltd,00018000,,Purchases,Information Technology,D27KD000040101,410032188
http://statistics.data.gov.uk/id/local-authority/29UP,Tonbridge & Malling Borough Council,5/25/2022,0012008360/2,12008360, 2.00,CCS Media Ltd,00018000,,Delivery Expenses,Information Technology,D27KD000044069,410032188
http://statistics.data.gov.uk/id/local-authority/29UP,Tonbridge & Malling Borough Council,5/25/2022,0012008361/1,12008361, 16025.44,Phoenix Software Ltd,00077400,755349015,Software Hire & Support,Information Technology,D27KD000044059,
http://statistics.data.gov.uk/id/local-authority/29UP,Tonbridge & Malling Borough Council,5/25/2022,0012008362/1,12008362, 403.00,Support Warehouse,01632100,,Maintenance - Ancillary Equip,Information Technology,D27KD000040137,410032193
http://statistics.data.gov.uk/id/local-authority/29UP,Tonbridge & Malling Borough Council,5/25/2022,0012008362/2,12008362, 403.00,Support Warehouse,01632100,,Maintenance - Ancillary Equip,Information Technology,D27KD000040137,410032193
http://statistics.data.gov.uk/id/local-authority/29UP,Tonbridge & Malling Borough Council,5/25/2022,0012008362/3,12008362, 403.00,Support Warehouse,01632100,,Maintenance - Ancillary Equip,Information Technology,D27KD000040137,410032193
http://statistics.data.gov.uk/id/local-authority/29UP,Tonbridge & Malling Borough Council,5/25/2022,0012008363/1,12008363, 45.00,Nexus Data Systems Ltd,01057000,,Purchases,Information Technology,D27KD000040101,410032183
http://statistics.data.gov.uk/id/local-authority/29UP,Tonbridge & Malling Borough Council,5/25/2022,0012008364/1,12008364, 2200.00,NEC Software Solutions UK Ltd,01073900,202159745,Consultancy Fees,Information Technology,D27KD000044011,410032186
http://statistics.data.gov.uk/id/local-authority/29UP,Tonbridge & Malling Borough Council,5/25/2022,0021037944/3,21037944, 346.00,O2 UK Ltd,01268000,,Mobile Telephones,St Scene & Leis Sals&Overheads,D01AGDG0145013,
http://statistics.data.gov.uk/id/local-authority/29UP,Tonbridge & Malling Borough Council,5/25/2022,0021037945/3,21037945, 51.61,REDACTED PERSONAL DATA,01217300,,Youth Initiatives,Youth Partnerships,B33PG000048124,
http://statistics.data.gov.uk/id/local-authority/29UP,Tonbridge & Malling Borough Council,5/25/2022,0021037945/4,21037945, 11.64,REDACTED PERSONAL DATA,01217300,,Youth Initiatives,Youth Partnerships,B33PG000048124,
http://statistics.data.gov.uk/id/local-authority/29UP,Tonbridge & Malling Borough Council,5/25/2022,0021037946/1,21037946, 46698.01,Alliance Leisure Services Ltd,01781100,,Contract Payments,LLCP Facility Improv,P05FF000009904,210056638
http://statistics.data.gov.uk/id/local-authority/29UP,Tonbridge & Malling Borough Council,5/25/2022,0021037947/1,21037947, 929.45,PPL PRS Ltd,01703400,,Licences,Events Development,B41TJ000048011,210056779
http://statistics.data.gov.uk/id/local-authority/29UP,Tonbridge & Malling Borough Council,5/25/2022,0021037948/1,21037948, 685.66,Atlas Facilities Managment Limited ,01075900,,Gates / Security,Patrolling,B22LF000044017,210056716
http://statistics.data.gov.uk/id/local-authority/29UP,Tonbridge & Malling Borough Council,5/25/2022,0021037950/1,21037950, 358.33,Rock UK,01212500,,Partnership Fees,Youth Partnerships,B33PG000044048,210056784
http://statistics.data.gov.uk/id/local-authority/29UP,Tonbridge & Malling Borough Council,5/25/2022,0021037951/1,21037951, 11.50,South East Water Ltd,01330300,,Maintenance of Grounds,Haysden Country Park,B22LC000020402,210056729
http://statistics.data.gov.uk/id/local-authority/29UP,Tonbridge & Malling Borough Council,5/25/2022,0021037952/1,21037952, 20.00,Medway Valley Countryside PartnershipKCC,00780000,,Partnership Fees,Youth Partnerships,B33PG000044048,210056739
http://statistics.data.gov.uk/id/local-authority/29UP,Tonbridge & Malling Borough Council,5/25/2022,0021037953/3,21037953, 132.00,Streamline (Kent) Limited,01043100,,Youth Initiatives,Youth Partnerships,B33PG000048124,
http://statistics.data.gov.uk/id/local-authority/29UP,Tonbridge & Malling Borough Council,5/25/2022,0021037953/4,21037953, 68.50,Streamline (Kent) Limited,01043100,,Public Transport,Homelessness,C01AA000033001,
http://statistics.data.gov.uk/id/local-authority/29UP,Tonbridge & Malling Borough Council,5/25/2022,0022026647/1,22026647, 16162.20,City of Nottingham,01848700,,Payment re Prev Yrs Cred Acc,Sundry Creditors PHEHS,J80TB000001101,
http://statistics.data.gov.uk/id/local-authority/29UP,Tonbridge & Malling Borough Council,5/25/2022,0022026648/1,22026648, 16736.00,Hubbard & Houghton Construction Ltd,00970600,,Other Expenses,Disabled Facilities Grant Mand,P03AC000009908,
http://statistics.data.gov.uk/id/local-authority/29UP,Tonbridge & Malling Borough Council,5/25/2022,0022026649/1,22026649, 3836.97,MCL  Mechanical Handling Ltd,00064100,,Other Expenses,Disabled Facilities Grant Mand,P03AC000009908,
http://statistics.data.gov.uk/id/local-authority/29UP,Tonbridge & Malling Borough Council,5/25/2022,0022026650/1,22026650, 2400.00,Dolphin Stairlifts,00698900,,Other Expenses,Disabled Facilities Grant Mand,P03AC000009908,
http://statistics.data.gov.uk/id/local-authority/29UP,Tonbridge & Malling Borough Council,5/25/2022,0022026651/1,22026651, 6149.62,P. W. Redfern,01563600,,Other Expenses,Disabled Facilities Grant Mand,P03AC000009908,
http://statistics.data.gov.uk/id/local-authority/29UP,Tonbridge & Malling Borough Council,5/25/2022,0022026652/1,22026652, 1173.55,Town & Country Housing Group,01385400,,Other Expenses,Disabled Facilities Grant Mand,P03AC000009908,
http://statistics.data.gov.uk/id/local-authority/29UP,Tonbridge & Malling Borough Council,5/25/2022,0022026653/1,22026653, 3465.00,Building Research Establishment LTD,01139200,,Other Expenses,Private Sector Housing Standar,C09EK000048010,220003232
http://statistics.data.gov.uk/id/local-authority/29UP,Tonbridge & Malling Borough Council,5/25/2022,0022026653/2,22026653, 3000.00,Building Research Establishment LTD,01139200,,Other Expenses,Private Sector Housing Standar,C09EK000048010,220003232
http://statistics.data.gov.uk/id/local-authority/29UP,Tonbridge & Malling Borough Council,5/25/2022,0022026654/1,22026654, 5605.00,Tunbridge Wells Borough Council,00844600,,Air Quality Monitoring,Environmental Protection,H32SN000054016,220003234
http://statistics.data.gov.uk/id/local-authority/29UP,Tonbridge & Malling Borough Council,5/25/2022,0022026655/1,22026655, 17032.36,Consultants in Care Ltd,01764200,,Temporary Accommodation,Homelessness,C01AA000044051,
http://statistics.data.gov.uk/id/local-authority/29UP,Tonbridge & Malling Borough Council,5/25/2022,0022026656/3,22026656, 490.00,Countrystyle Group,00835900,781981681,Plastic Recycling,Dry Recycling,H34SR000054019,
http://statistics.data.gov.uk/id/local-authority/29UP,Tonbridge & Malling Borough Council,5/25/2022,0022026657/1,22026657, 88.53,Scottish Water Business Stream Ltd,01641100,,Sewerage Charges,Public Conveniences,H22SCH00424003,
http://statistics.data.gov.uk/id/local-authority/29UP,Tonbridge & Malling Borough Council,5/25/2022,0022026658/3,22026658, 772.84,KCC - L.A.S.E.R Commercial Services ,00184300,,Electricity,Public Conveniences,H22SCH00421002,
http://statistics.data.gov.uk/id/local-authority/29UP,Tonbridge & Malling Borough Council,5/25/2022,0022026659/1,22026659, 1221.00,G2 Recruitment Solutions,01786000,,Temporary Staff,Env Hlth & Hsg Sals&Overheads,D01AVDV0711300,
http://statistics.data.gov.uk/id/local-authority/29UP,Tonbridge & Malling Borough Council,5/25/2022,0022026660/1,22026660, 1242.46,G2 Recruitment Solutions,01786000,,Temporary Staff,Planning Sals&Overheads,D01AJDJ0111300,
http://statistics.data.gov.uk/id/local-authority/29UP,Tonbridge & Malling Borough Council,5/25/2022,0022026661/1,22026661, 1239.50,Vivid Resourcing,01773700,,Temporary Staff,Env Hlth & Hsg Sals&Overheads,D01AVDV0711300,
http://statistics.data.gov.uk/id/local-authority/29UP,Tonbridge & Malling Borough Council,5/25/2022,0022026662/1,22026662, 5678.19,Orbit Housing Association Ltd,01261900,,Contribution from Other Bodies,Homelessness,C01AACV1995001,
http://statistics.data.gov.uk/id/local-authority/29UP,Tonbridge & Malling Borough Council,5/25/2022,0031018665/1,31018665, 175.70,British Telecommunications Plc,00012800,,Maintenance - General,Security Services Management,E09GA000040135,
http://statistics.data.gov.uk/id/local-authority/29UP,Tonbridge & Malling Borough Council,5/25/2022,0031018666/1,31018666, 1295.09,CDER Group,01773300,,Adjudication & Enforcement Ser,Parking Off-Street,E10HA000044230,
http://statistics.data.gov.uk/id/local-authority/29UP,Tonbridge & Malling Borough Council,5/25/2022,0031018667/1,31018667, 500.00,Millennium Quest LTD,01686300,,Salaries & On Costs,Eco Dev & Reg Ton Chris Light,D52TF000015100,210056658
http://statistics.data.gov.uk/id/local-authority/29UP,Tonbridge & Malling Borough Council,5/25/2022,0031018674/3,31018674, 122.68,Kings Hill Garage Ltd,01546300,,Transport Repair & Maintenance,Parking Off-Street,E10HA000030103,
http://statistics.data.gov.uk/id/local-authority/29UP,Tonbridge & Malling Borough Council,5/25/2022,0031018674/4,31018674, 27.43,Kings Hill Garage Ltd,01546300,,Transport Repair & Maintenance,Parking Off-Street,E10HA000030103,
http://statistics.data.gov.uk/id/local-authority/29UP,Tonbridge & Malling Borough Council,5/25/2022,0031018674/5,31018674, 27.43,Kings Hill Garage Ltd,01546300,,Transport Repair & Maintenance,Parking On-Street,E10HD000030103,
http://statistics.data.gov.uk/id/local-authority/29UP,Tonbridge & Malling Borough Council,5/25/2022,0031018674/6,31018674, 122.69,Kings Hill Garage Ltd,01546300,,Transport Repair & Maintenance,Parking On-Street,E10HD000030103,
http://statistics.data.gov.uk/id/local-authority/29UP,Tonbridge & Malling Borough Council,5/25/2022,0031018675/1,31018675, 2053.85,Chroma Vision Ltd,00891600,,CCTV Monitoring Station,Security Services Management,E09GA000051020,
http://statistics.data.gov.uk/id/local-authority/29UP,Tonbridge & Malling Borough Council,5/25/2022,0031018676/1,31018676, 500.00,Traffic Enforcement Centre,00604200,,Adjudication & Enforcement Ser,Parking Off-Street,E10HA000044230,
http://statistics.data.gov.uk/id/local-authority/29UP,Tonbridge & Malling Borough Council,5/25/2022,0031018676/2,31018676, 500.00,Traffic Enforcement Centre,00604200,,Adjudication & Enforcement Ser,Parking On-Street,E10HD000044230,
http://statistics.data.gov.uk/id/local-authority/29UP,Tonbridge & Malling Borough Council,5/25/2022,0032009563/1,32009563, 364.14,KM Media Group Ltd,00053900,,Advertising General,Development Management,A01ABZ99944216,320003408
http://statistics.data.gov.uk/id/local-authority/29UP,Tonbridge & Malling Borough Council,5/25/2022,0032009564/1,32009564, 2590.00,G2 Recruitment Solutions,01786000,,Temporary Staff,Planning Sals&Overheads,D01AJDJ0111300,
http://statistics.data.gov.uk/id/local-authority/29UP,Tonbridge & Malling Borough Council,5/25/2022,0032009565/1,32009565, 2935.14,G2 Recruitment Solutions,01786000,,Temporary Staff,Planning Sals&Overheads,D01AJDJ0111300,
http://statistics.data.gov.uk/id/local-authority/29UP,Tonbridge & Malling Borough Council,5/25/2022,0032009566/1,32009566, 2479.00,G2 Recruitment Solutions,01786000,,Temporary Staff,Planning Sals&Overheads,D01AJDJ0111300,
http://statistics.data.gov.uk/id/local-authority/29UP,Tonbridge & Malling Borough Council,5/25/2022,0032009567/7,32009567, 1892.00,The Oyster Partnership,01196400,,Temporary Staff,Planning Sals&Overheads,D01AJDJ0111300,
http://statistics.data.gov.uk/id/local-authority/29UP,Tonbridge & Malling Borough Council,5/25/2022,0032009568/1,32009568, 1702.00,Vivid Resourcing,01773700,,Temporary Staff,Planning Sals&Overheads,D01AJDJ0111300,
http://statistics.data.gov.uk/id/local-authority/29UP,Tonbridge & Malling Borough Council,5/25/2022,0032009569/1,32009569, 2072.00,Vivid Resourcing,01773700,,Temporary Staff,Planning Sals&Overheads,D01AJDJ0111300,
http://statistics.data.gov.uk/id/local-authority/29UP,Tonbridge & Malling Borough Council,5/25/2022,0041034328/1,41034328, 1085.37,Morgan Hunt UK Ltd,01086900,,Temporary Staff,Finance Sals&Overheads,D01AFDF1111300,
http://statistics.data.gov.uk/id/local-authority/29UP,Tonbridge & Malling Borough Council,5/25/2022,0041034329/1,41034329, 971.25,Morgan Hunt UK Ltd,01086900,,Temporary Staff,Finance Sals&Overheads,D01AFDF1111300,
http://statistics.data.gov.uk/id/local-authority/29UP,Tonbridge & Malling Borough Council,5/25/2022,0041034330/1,41034330, 379.02,KH Recruitment Ltd,01738900,,Temporary Staff,Finance Sals&Overheads,D01AFDF1111300,
http://statistics.data.gov.uk/id/local-authority/29UP,Tonbridge & Malling Borough Council,5/25/2022,0041034340/1,41034340, 2693.46,Maidstone Borough Council,01173700,,Bailiffs Commission,Local Revenue & NNDR Collect,D41QA000044075,
http://statistics.data.gov.uk/id/local-authority/29UP,Tonbridge & Malling Borough Council,5/25/2022,0041034341/1,41034341, 2014.10,The Oyster Partnership,01196400,,Temporary Staff,Finance Sals&Overheads,D01AFDF1111300,
http://statistics.data.gov.uk/id/local-authority/29UP,Tonbridge & Malling Borough Council,5/25/2022,0041034342/1,41034342, 1229.03,Rundle & Co Ltd,00087200,,Bailiffs Commission,Local Revenue & NNDR Collect,D41QA000044075,
http://statistics.data.gov.uk/id/local-authority/29UP,Tonbridge & Malling Borough Council,5/25/2022,0041034343/1,41034343, 310.00,Rundle & Co Ltd,00087200,,Bailiffs Commission,Local Revenue & NNDR Collect,D41QA000044075,
http://statistics.data.gov.uk/id/local-authority/29UP,Tonbridge & Malling Borough Council,5/25/2022,0041034349/1,41034349, 1000.00,REDACTED PERSONAL DATA,01850200,,BRREP General Maintenance,Land Review,M15MAP49901900,
http://statistics.data.gov.uk/id/local-authority/29UP,Tonbridge & Malling Borough Council,5/25/2022,0051008702/1,51008702, 695.00,The East Malling Trust,01490600,,Ext Fees/Prof & Tech,Training,D10DCDG0113561,510010577
http://statistics.data.gov.uk/id/local-authority/29UP,Tonbridge & Malling Borough Council,5/26/2022,0041034352/1,41034352, 50.00,Handelsbanken,01349600,,Professional Fees,Treasury Management,D43QT000044001,
http://statistics.data.gov.uk/id/local-authority/29UP,Tonbridge & Malling Borough Council,5/27/2022,0041034353/1,41034353, 68.00,National Westminster Bank Plc,00069400,,Direct Debit / Bank Charges,Local Revenue & NNDR Collect,D41QA000044079,
http://statistics.data.gov.uk/id/local-authority/29UP,Tonbridge & Malling Borough Council,5/27/2022,0041034354/1,41034354, 200.33,National Westminster Bank Plc,00069400,,Direct Debit / Bank Charges,Local Revenue & NNDR Collect,D41QA000044079,
http://statistics.data.gov.uk/id/local-authority/29UP,Tonbridge & Malling Borough Council,5/27/2022,0041034356/1,41034356, 0.54,WorldPay ,01568000,,Credit Card Commission,Banking Arrangements,D43QK000044082,
http://statistics.data.gov.uk/id/local-authority/29UP,Tonbridge & Malling Borough Council,5/27/2022,0041034357/1,41034357, 15.00,WorldPay ,01568000,,Credit Card Commission,Banking Arrangements,D43QK000044082,
http://statistics.data.gov.uk/id/local-authority/29UP,Tonbridge & Malling Borough Council,5/27/2022,0041034358/1,41034358, 32.77,WorldPay ,01568000,,Credit Card Commission,Banking Arrangements,D43QK000044082,
http://statistics.data.gov.uk/id/local-authority/29UP,Tonbridge & Malling Borough Council,5/27/2022,0041034359/1,41034359, 131.02,WorldPay ,01568000,,Credit Card Commission,Banking Arrangements,D43QK000044082,
http://statistics.data.gov.uk/id/local-authority/29UP,Tonbridge & Malling Borough Council,5/27/2022,0041034360/1,41034360, 942.48,WorldPay ,01568000,,Credit Card Commission,Banking Arrangements,D43QK000044082,
http://statistics.data.gov.uk/id/local-authority/29UP,Tonbridge & Malling Borough Council,5/27/2022,0041034361/1,41034361, 2095.51,WorldPay ,01568000,,Credit Card Commission,Banking Arrangements,D43QK000044082,
http://statistics.data.gov.uk/id/local-authority/29UP,Tonbridge & Malling Borough Council,5/27/2022,0041034361/2,41034361, 183.15,WorldPay ,01568000,,Credit Card Commission,Banking Arrangements,D43QK000044082,
http://statistics.data.gov.uk/id/local-authority/29UP,Tonbridge & Malling Borough Council,5/31/2022,0022026672/1,22026672, 5744.88,Town & Country Housing Group,01385400,,Countywide DFG Project,Private Sector Housing Renewal,C03BD000044031,
http://statistics.data.gov.uk/id/local-authority/29UP,Tonbridge & Malling Borough Council,5/31/2022,0022026673/1,22026673, 16085.65,Town & Country Housing Group,01385400,,Countywide DFG Project,Private Sector Housing Renewal,C03BD000044031,
